NUMERO_MANDATO;RIGA_MANDATO;QUIET;IMPORTO_RIGA;IMPORTO_MANDATO;BENEFICIARIO;CIG;TITOLO_PAGAMENTO;DATA_MANDATO;CAPITOLO;ARTICOLO;NUMERO_IMPEGNO;TITOLO;DESCR_TITOLO;LIVELLO_II;DESCR_LIVELLO_II;LIVELLO_III;DESCR_LIVELLO_III;LIVELLO_IV;DESCR_LIVELLO_IV;LIVELLO_V;DESCR_LIVELLO_V;DATA_PAG_EFF
2;1;0;61;61;omissis; ;CONTRIBUTO ECONOMICO STRAORDINARIO MEDIANTE ACQUISTO GENERI ALIMENTARI;11/01/2016;3410;0;105;1;Spese correnti;4;Trasferimenti correnti;2;Trasferimenti correnti a Famiglie;2;Interventi assistenziali;999;Altri assegni e sussidi assistenziali;11/01/2016
3;1;0;4,29;44,35;TELECOM ITALIA SPA;54663373FE;SALDO Fatt.n. 8B01161086  del 06/10/2015;12/01/2016;660;0;89;1;Spese correnti;3;Acquisto di beni e servizi;2;Acquisto di servizi;99;Altri servizi;999;Altri servizi diversi n.a.c.;12/01/2016
3;2;0;4,36;44,35;TELECOM ITALIA SPA;54663373FE;SALDO Fatt.n. 8B01158892  del 06/10/2015;12/01/2016;660;0;89;1;Spese correnti;3;Acquisto di beni e servizi;2;Acquisto di servizi;99;Altri servizi;999;Altri servizi diversi n.a.c.;12/01/2016
3;3;0;5,07;44,35;TELECOM ITALIA SPA;54663373FE;SALDO Fatt.n. 8B01166768  del 06/10/2015;12/01/2016;660;0;89;1;Spese correnti;3;Acquisto di beni e servizi;2;Acquisto di servizi;99;Altri servizi;999;Altri servizi diversi n.a.c.;12/01/2016
3;4;0;13,35;44,35;TELECOM ITALIA SPA;54663373FE;SALDO Fatt.n. 8B01166413  del 06/10/2015;12/01/2016;660;0;89;1;Spese correnti;3;Acquisto di beni e servizi;2;Acquisto di servizi;99;Altri servizi;999;Altri servizi diversi n.a.c.;12/01/2016
3;5;0;17,28;44,35;TELECOM ITALIA SPA;54663373FE;SALDO Fatt.n. 8B01164168  del 06/10/2015;12/01/2016;660;0;89;1;Spese correnti;3;Acquisto di beni e servizi;2;Acquisto di servizi;99;Altri servizi;999;Altri servizi diversi n.a.c.;12/01/2016
5;1;0;168,15;168,15;ENEL SERVIZIO ELETTRICO SPA; ;SALDO Fatt.n. 188550080108515  del 09/01/2016;20/01/2016;2390;0;103;1;Spese correnti;3;Acquisto di beni e servizi;2;Acquisto di servizi;5;Utenze e canoni;4;Energia elettrica;20/01/2016
6;1;0;3.939,62;3.939,62;BELLOLI DR. SERGIO; ;SALDO Fatt.n. 1  del 14/01/2016 PRESTAZIONI PROFESSIONALI;20/01/2016;30;0;56;1;Spese correnti;3;Acquisto di beni e servizi;2;Acquisto di servizi;1;Organi e incarichi istituzionali dell'amministrazione;8;Compensi agli organi istituzionali di revisione, di controllo ed altri incarichi istituzionali dell'amministrazione;20/01/2016
7;1;0;8;1.443,00;LIBARNA GAS SPA; ;SALDO Fatt.n. 145287  del 24/12/2015;20/01/2016;660;0;89;1;Spese correnti;3;Acquisto di beni e servizi;2;Acquisto di servizi;99;Altri servizi;999;Altri servizi diversi n.a.c.;20/01/2016
7;2;0;9;1.443,00;LIBARNA GAS SPA; ;SALDO Fatt.n. 144911  del 24/12/2015;20/01/2016;660;0;89;1;Spese correnti;3;Acquisto di beni e servizi;2;Acquisto di servizi;99;Altri servizi;999;Altri servizi diversi n.a.c.;20/01/2016
7;3;0;106;1.443,00;LIBARNA GAS SPA; ;SALDO Fatt.n. 145286  del 24/12/2015;20/01/2016;660;0;89;1;Spese correnti;3;Acquisto di beni e servizi;2;Acquisto di servizi;99;Altri servizi;999;Altri servizi diversi n.a.c.;20/01/2016
7;4;0;112;1.443,00;LIBARNA GAS SPA; ;SALDO Fatt.n. 145288  del 24/12/2015;20/01/2016;660;0;89;1;Spese correnti;3;Acquisto di beni e servizi;2;Acquisto di servizi;99;Altri servizi;999;Altri servizi diversi n.a.c.;20/01/2016
7;5;0;258;1.443,00;LIBARNA GAS SPA; ;SALDO Fatt.n. 145289  del 24/12/2015;20/01/2016;660;0;89;1;Spese correnti;3;Acquisto di beni e servizi;2;Acquisto di servizi;99;Altri servizi;999;Altri servizi diversi n.a.c.;20/01/2016
7;6;0;419;1.443,00;LIBARNA GAS SPA; ;SALDO Fatt.n. 145290  del 24/12/2015;20/01/2016;660;0;89;1;Spese correnti;3;Acquisto di beni e servizi;2;Acquisto di servizi;99;Altri servizi;999;Altri servizi diversi n.a.c.;20/01/2016
7;7;0;531;1.443,00;LIBARNA GAS SPA; ;SALDO Fatt.n. 144912  del 24/12/2015;20/01/2016;660;0;89;1;Spese correnti;3;Acquisto di beni e servizi;2;Acquisto di servizi;99;Altri servizi;999;Altri servizi diversi n.a.c.;20/01/2016
8;1;0;1.826,00;1.826,00;BRONI-STRADELLA Spa;Z20164FF41;SALDO Fatt.n. 574/E  del 17/12/2015;20/01/2016;2930;0;107;1;Spese correnti;3;Acquisto di beni e servizi;2;Acquisto di servizi;99;Altri servizi;999;Altri servizi diversi n.a.c.;20/01/2016
9;1;0;840,55;2.672,12;TEMPORARY S.p.A con Unico Socio; ;SALDO Fatt.n. 2015001238-E  del 30/11/2015;20/01/2016;125;0;76;1;Spese correnti;3;Acquisto di beni e servizi;2;Acquisto di servizi;12;Lavoro flessibile, quota LSU e acquisto di servizi da agenzie di lavoro interinale;1;Acquisto di servizi da agenzie di lavoro interinale;20/01/2016
9;2;0;1.831,57;2.672,12;TEMPORARY S.p.A con Unico Socio; ;SALDO Fatt.n. 2015001367-E  del 31/12/2015;20/01/2016;125;0;76;1;Spese correnti;3;Acquisto di beni e servizi;2;Acquisto di servizi;12;Lavoro flessibile, quota LSU e acquisto di servizi da agenzie di lavoro interinale;1;Acquisto di servizi da agenzie di lavoro interinale;20/01/2016
10;1;0;20.144,23;20.144,23;SISTI ANDREA;ZEE12161B2;SALDO Fatt.n. 1/E  del 13/01/2016 RIQUALIF. VIARIA  (DET. RS 2 N. 60 DEL 31.12.2014);20/01/2016;480;0;80;1;Spese correnti;3;Acquisto di beni e servizi;2;Acquisto di servizi;11;Prestazioni professionali e specialistiche;999;Altre prestazioni professionali e specialistiche n.a.c.;20/01/2016
27;1;0;1.500,00;1.500,00;SISTI ANDREA, GRAMEGNA MARIA ADELE, SISTI LUCA;375821404E;NOTA PRO FORMA del 28.07.2014 per redazione regolamento edilzio;26/01/2016;7833;0;107;2;Spese in conto capitale;5;Altre spese in conto capitale;99;Altre spese in conto capitale n.a.c.;99;Altre spese in conto capitale n.a.c.;999;Altre spese in conto capitale n.a.c.;26/01/2016
28;1;0;2.250,00;2.250,00;SISTI ANDREA, GRAMEGNA MARIA ADELE, SISTI LUCA; ;nota pro forma per variante parziale al PGT;26/01/2016;7833;0;107;2;Spese in conto capitale;5;Altre spese in conto capitale;99;Altre spese in conto capitale n.a.c.;99;Altre spese in conto capitale n.a.c.;999;Altre spese in conto capitale n.a.c.;26/01/2016
32;1;0;82,06;82,06;ENEL SERVIZIO ELETTRICO SPA; ;SALDO Fatt.n. 188550270101211  del 09/01/2016 - PROVV.N. 6 DEL 29.01.2016;06/02/2016;661;0;92;1;Spese correnti;3;Acquisto di beni e servizi;2;Acquisto di servizi;5;Utenze e canoni;4;Energia elettrica;06/02/2016
35;1;0;220;260;UNIONE CAMPOSPINOSO ALBAREDO; ;IMPOSTA DI BOLLO E SPESE CCP 27748219;06/02/2016;135;0;0;1;Spese correnti;3;Acquisto di beni e servizi;2;Acquisto di servizi;99;Altri servizi;999;Altri servizi diversi n.a.c.;06/02/2016
35;2;0;40;260;UNIONE CAMPOSPINOSO ALBAREDO; ;IMPOSTA DI BOLLO E SPESE CCP 27748235;06/02/2016;135;0;0;1;Spese correnti;3;Acquisto di beni e servizi;2;Acquisto di servizi;99;Altri servizi;999;Altri servizi diversi n.a.c.;06/02/2016
39;1;0;470;470;GHIA PIERO AGENTE ALLIANZ SPA; ;Polizza Multi Garanzie n. 048966635 scad. 05.02.2016;11/02/2016;390;1;0;1;Spese correnti;3;Acquisto di beni e servizi;2;Acquisto di servizi;9;Manutenzione ordinaria e riparazioni;6;Manutenzione ordinaria e riparazioni di macchine per ufficio;11/02/2016
40;1;0;100;100;UNIPOL SAI - AGENTE ARDISSONE PAOLO; ;Causale: FRANCH- 2015050650097;11/02/2016;390;1;0;1;Spese correnti;3;Acquisto di beni e servizi;2;Acquisto di servizi;9;Manutenzione ordinaria e riparazioni;6;Manutenzione ordinaria e riparazioni di macchine per ufficio;11/02/2016
41;1;0;52,4;52,4;omissis; ;CONTRIBUTO STRAORDINARIO MEDIANTE ACQUISTO GENERI PRIMA NECESSITA';11/02/2016;3410;0;105;1;Spese correnti;4;Trasferimenti correnti;2;Trasferimenti correnti a Famiglie;2;Interventi assistenziali;999;Altri assegni e sussidi assistenziali;11/02/2016
42;1;0;2.461,00;2.461,00;CITTA' DI STRADELLA; ;QUOTA FREQUENZA CENTRO DIURNO N. 2 UTENTI OTTOBRE, NOVEMBRE E DICEMBRE 2015;11/02/2016;3400;1;110;1;Spese correnti;4;Trasferimenti correnti;1;Trasferimenti correnti a Amministrazioni Pubbliche;2;Trasferimenti correnti a Amministrazioni Locali;3;Trasferimenti correnti a Comuni;11/02/2016
43;1;0;880;880;ANFFAS ONLUS BRONI STRADELLA;Z0C12C6D3E;SALDO Fatt.n. 0000096  del 31/12/2015;11/02/2016;3400;1;110;1;Spese correnti;4;Trasferimenti correnti;1;Trasferimenti correnti a Amministrazioni Pubbliche;2;Trasferimenti correnti a Amministrazioni Locali;3;Trasferimenti correnti a Comuni;11/02/2016
44;1;0;1.609,48;3.327,46;MARTA S.C.R.L.; ;SALDO Fatt.n. 1157/EL  del 30/11/2015 Fatture clienti PA elettronica;11/02/2016;1582;0;99;1;Spese correnti;3;Acquisto di beni e servizi;2;Acquisto di servizi;99;Altri servizi;999;Altri servizi diversi n.a.c.;11/02/2016
44;2;0;1.717,98;3.327,46;MARTA S.C.R.L.; ;SALDO Fatt.n. 975/EL  del 31/10/2015 Fatture clienti PA elettronica;11/02/2016;1582;0;99;1;Spese correnti;3;Acquisto di beni e servizi;2;Acquisto di servizi;99;Altri servizi;999;Altri servizi diversi n.a.c.;11/02/2016
45;1;0;84,79;180,17;TOTAL ERG SPA; ;ACCONTO Fatt.n. I5445224  del 30/11/2015;11/02/2016;385;1;81;1;Spese correnti;3;Acquisto di beni e servizi;1;Acquisto di beni;2;Altri beni di consumo;2;Carburanti, combustibili e lubrificanti;11/02/2016
45;2;0;95,38;180,17;TOTAL ERG SPA; ;ACCONTO Fatt.n. I6009522  del 31/12/2015;11/02/2016;385;1;81;1;Spese correnti;3;Acquisto di beni e servizi;1;Acquisto di beni;2;Altri beni di consumo;2;Carburanti, combustibili e lubrificanti;11/02/2016
46;1;0;165,92;581,94;MAGGIOLI SPA;Z0016DFBOB;SALDO Fatt.n. 0002141134  del 24/11/2015 FATT. IVA SPLIT P.;11/02/2016;110;2;74;1;Spese correnti;3;Acquisto di beni e servizi;1;Acquisto di beni;2;Altri beni di consumo;1;Carta, cancelleria e stampati;11/02/2016
46;2;0;140,3;581,94;MAGGIOLI SPA;Z8816DFB08;SALDO Fatt.n. 0002144095  del 14/12/2015 FATT. IVA SPLIT P.;11/02/2016;110;2;74;1;Spese correnti;3;Acquisto di beni e servizi;1;Acquisto di beni;2;Altri beni di consumo;1;Carta, cancelleria e stampati;11/02/2016
46;3;0;275,72;581,94;MAGGIOLI SPA;Z8816DFB08;SALDO Fatt.n. 0002144094  del 14/12/2015 FATT. IVA SPLIT P.;11/02/2016;110;2;74;1;Spese correnti;3;Acquisto di beni e servizi;1;Acquisto di beni;2;Altri beni di consumo;1;Carta, cancelleria e stampati;11/02/2016
47;1;0;623,58;1.615,03;TOTAL ERG SPA;48339047C4;ACCONTO Fatt.n. I6009522  del 31/12/2015;12/02/2016;1570;0;97;1;Spese correnti;3;Acquisto di beni e servizi;1;Acquisto di beni;2;Altri beni di consumo;2;Carburanti, combustibili e lubrificanti;12/02/2016
47;2;0;991,45;1.615,03;TOTAL ERG SPA;48339047C4;SALDO Fatt.n. I5445224  del 30/11/2015;12/02/2016;1570;0;97;1;Spese correnti;3;Acquisto di beni e servizi;1;Acquisto di beni;2;Altri beni di consumo;2;Carburanti, combustibili e lubrificanti;12/02/2016
48;1;0;115,22;115,22;TOTAL ERG SPA; ;SALDO Fatt.n. I6009522  del 31/12/2015;12/02/2016;2290;0;101;1;Spese correnti;3;Acquisto di beni e servizi;1;Acquisto di beni;2;Altri beni di consumo;999;Altri beni e materiali di consumo n.a.c.;12/02/2016
49;1;0;11;1.857,00;LIBARNA GAS SPA; ;SALDO Fatt.n. 100025  del 28/01/2016;15/02/2016;660;0;0;1;Spese correnti;3;Acquisto di beni e servizi;2;Acquisto di servizi;99;Altri servizi;999;Altri servizi diversi n.a.c.;15/02/2016
49;2;0;12;1.857,00;LIBARNA GAS SPA; ;SALDO Fatt.n. 100027  del 28/01/2016;15/02/2016;660;0;0;1;Spese correnti;3;Acquisto di beni e servizi;2;Acquisto di servizi;99;Altri servizi;999;Altri servizi diversi n.a.c.;15/02/2016
49;3;0;182;1.857,00;LIBARNA GAS SPA; ;SALDO Fatt.n. 100031  del 28/01/2016;15/02/2016;660;0;0;1;Spese correnti;3;Acquisto di beni e servizi;2;Acquisto di servizi;99;Altri servizi;999;Altri servizi diversi n.a.c.;15/02/2016
49;4;0;330;1.857,00;LIBARNA GAS SPA; ;SALDO Fatt.n. 100030  del 28/01/2016;15/02/2016;660;0;0;1;Spese correnti;3;Acquisto di beni e servizi;2;Acquisto di servizi;99;Altri servizi;999;Altri servizi diversi n.a.c.;15/02/2016
49;5;0;553;1.857,00;LIBARNA GAS SPA; ;SALDO Fatt.n. 100029  del 28/01/2016;15/02/2016;660;0;0;1;Spese correnti;3;Acquisto di beni e servizi;2;Acquisto di servizi;99;Altri servizi;999;Altri servizi diversi n.a.c.;15/02/2016
49;6;0;646;1.857,00;LIBARNA GAS SPA; ;SALDO Fatt.n. 100026  del 28/01/2016;15/02/2016;660;0;0;1;Spese correnti;3;Acquisto di beni e servizi;2;Acquisto di servizi;99;Altri servizi;999;Altri servizi diversi n.a.c.;15/02/2016
49;7;0;123;1.857,00;LIBARNA GAS SPA; ;SALDO Fatt.n. 100028  del 28/01/2016 -;15/02/2016;660;0;0;1;Spese correnti;3;Acquisto di beni e servizi;2;Acquisto di servizi;99;Altri servizi;999;Altri servizi diversi n.a.c.;15/02/2016
50;1;0;1.975,60;1.975,60;BRONI-STRADELLA Spa;Z20164FF41;SALDO Fatt.n. 635/E  del 31/12/2015;15/02/2016;2930;0;107;1;Spese correnti;3;Acquisto di beni e servizi;2;Acquisto di servizi;99;Altri servizi;999;Altri servizi diversi n.a.c.;15/02/2016
51;1;0;231,8;231,8;MAGGIOLI SPA;Z8816DFB08;SALDO Fatt.n. 0002102261  del 31/01/2016 FATT. IVA SPLIT P.;15/02/2016;110;2;74;1;Spese correnti;3;Acquisto di beni e servizi;1;Acquisto di beni;2;Altri beni di consumo;1;Carta, cancelleria e stampati;15/02/2016
52;1;0;417,46;417,46;ELETTRICA BRONESE BELLAN RENATO SNC; ;SALDO Fatt.n. 003/16  del 22/01/2016 MANUTENZIONE IMPIANTI ELETTRICI EDIFICI COMUNALI;15/02/2016;390;4;0;1;Spese correnti;3;Acquisto di beni e servizi;2;Acquisto di servizi;9;Manutenzione ordinaria e riparazioni;8;Manutenzione ordinaria e riparazioni di beni immobili;15/02/2016
53;1;0;2.543,03;2.543,03;C.M.E. MARMI E GRANITI;35487297CE;SALDO Fatt.n. 17/PA  del 11/12/2015 COTTIMO FIDUCIARIO;15/02/2016;3470;1;113;1;Spese correnti;3;Acquisto di beni e servizi;2;Acquisto di servizi;99;Altri servizi;999;Altri servizi diversi n.a.c.;15/02/2016
54;1;0;281,86;281,86;ELETTRICA BRONESE BELLAN RENATO SNC; ;SALDO Fatt.n. 001/16  del 20/01/2016 MANUTENZIONE IMPIANTI ELETTRICI CIMITERI;15/02/2016;3470;3;0;1;Spese correnti;3;Acquisto di beni e servizi;2;Acquisto di servizi;99;Altri servizi;999;Altri servizi diversi n.a.c.;15/02/2016
55;1;0;467,28;467,28;ELETTRICA BRONESE BELLAN RENATO SNC; ;SALDO Fatt.n. 002/16  del 21/01/2016 MANUTENZIONE IMPIANTO DEMAFORICO;15/02/2016;2310;0;0;1;Spese correnti;3;Acquisto di beni e servizi;2;Acquisto di servizi;99;Altri servizi;999;Altri servizi diversi n.a.c.;15/02/2016
56;1;0;1.027,88;1.164,25;CARTOLERIA VANETTA DI MOLINARI IVANO; ;SALDO Fatt.n. 13 EL  del 30/12/2015 LIBRI SCOLASTICI;15/02/2016;1330;2;96;1;Spese correnti;4;Trasferimenti correnti;3;Trasferimenti correnti a Imprese;99;Trasferimenti correnti a altre imprese;999;Trasferimenti correnti a altre imprese;15/02/2016
56;2;0;29,61;1.164,25;IL PASTELLO S.N.C. di Bellinzona N. e C.; ;SALDO Fatt.n. FATTPA 7_16  del 25/01/2016;15/02/2016;1330;2;96;1;Spese correnti;4;Trasferimenti correnti;3;Trasferimenti correnti a Imprese;99;Trasferimenti correnti a altre imprese;999;Trasferimenti correnti a altre imprese;15/02/2016
56;3;0;21,79;1.164,25;PARESCHI FABIO; ;"SALDO Fatt.n. 21  del 23/11/2015 libri di testo alunna ""SILVESTRI ARIANNA "" 1 element.";15/02/2016;1330;2;96;1;Spese correnti;4;Trasferimenti correnti;3;Trasferimenti correnti a Imprese;99;Trasferimenti correnti a altre imprese;999;Trasferimenti correnti a altre imprese;15/02/2016
56;4;0;21,06;1.164,25;ROBERTO FRANZINI; ;SALDO Fatt.n. FATTPA 5_16  del 27/01/2016;15/02/2016;1330;2;96;1;Spese correnti;4;Trasferimenti correnti;3;Trasferimenti correnti a Imprese;99;Trasferimenti correnti a altre imprese;999;Trasferimenti correnti a altre imprese;15/02/2016
56;5;0;63,91;1.164,25;"T.ET.SAS di ROSSIGNOLI FABRIZIO &amp; C."; ;SALDO Fatt.n. FATTPA 8_15  del 15/12/2015;15/02/2016;1330;2;96;1;Spese correnti;4;Trasferimenti correnti;3;Trasferimenti correnti a Imprese;99;Trasferimenti correnti a altre imprese;999;Trasferimenti correnti a altre imprese;15/02/2016
57;1;0;1.057,91;1.057,91;MARTA S.C.R.L.;ZB015CD76E;SALDO Fatt.n. 1394/EL  del 31/12/2015 Fatture clienti PA elettronica;15/02/2016;1582;0;99;1;Spese correnti;3;Acquisto di beni e servizi;2;Acquisto di servizi;99;Altri servizi;999;Altri servizi diversi n.a.c.;15/02/2016
58;1;0;4.575,00;4.575,00;ENEL SOLE SRL;4785823A11;SALDO Fatt.n. 1530069586  del 31/12/2015;15/02/2016;7829;0;76;2;Spese in conto capitale;5;Altre spese in conto capitale;99;Altre spese in conto capitale n.a.c.;99;Altre spese in conto capitale n.a.c.;999;Altre spese in conto capitale n.a.c.;15/02/2016
59;1;0;670,96;670,96;COPYARREDO SNC;Z771319D34;SALDO Fatt.n. 1P  del 14/01/2016;15/02/2016;390;1;13;1;Spese correnti;3;Acquisto di beni e servizi;2;Acquisto di servizi;9;Manutenzione ordinaria e riparazioni;6;Manutenzione ordinaria e riparazioni di macchine per ufficio;15/02/2016
60;1;0;590,44;590,44;COOPERATIVA TICINO;6057911A4B;SALDO Fatt.n. FATTPA 4_16  del 04/01/2016;15/02/2016;390;0;9;1;Spese correnti;3;Acquisto di beni e servizi;2;Acquisto di servizi;99;Altri servizi;999;Altri servizi diversi n.a.c.;15/02/2016
61;1;0;7.286,48;7.286,48;BRONI-STRADELLA Spa;Z20164FF41;SALDO Fatt.n. 576/E  del 31/12/2015;15/02/2016;2940;0;108;1;Spese correnti;3;Acquisto di beni e servizi;2;Acquisto di servizi;99;Altri servizi;999;Altri servizi diversi n.a.c.;15/02/2016
62;1;0;17.085,64;17.085,64;BRONI-STRADELLA PUBBLICA S.R.L.;ZB9176CA92;SALDO Fatt.n. 2/E  del 28/12/2015 FATTURA DI VENDITA;15/02/2016;2846;0;105;1;Spese correnti;3;Acquisto di beni e servizi;2;Acquisto di servizi;5;Utenze e canoni;5;Acqua;15/02/2016
63;1;0;256,44;256,44;MAZZOCCHI GOMME Snc;Z4A12D7FD1;ACCONTO Fatt.n. E9  del 23/12/2015;15/02/2016;1581;0;33;1;Spese correnti;3;Acquisto di beni e servizi;2;Acquisto di servizi;9;Manutenzione ordinaria e riparazioni;1;Manutenzione ordinaria e riparazioni di mezzi di trasporto ad uso civile, di sicurezza e ordine pubblico;15/02/2016
64;1;0;70,76;70,76;MAZZOCCHI GOMME Snc;Z4A12D7FD1;ACCONTO Fatt.n. E9  del 23/12/2015;15/02/2016;2315;0;26;1;Spese correnti;3;Acquisto di beni e servizi;2;Acquisto di servizi;9;Manutenzione ordinaria e riparazioni;4;Manutenzione ordinaria e riparazioni di impianti e macchinari;15/02/2016
65;1;0;67,71;67,71;MAZZOCCHI GOMME Snc;Z4A12D7FD1;SALDO Fatt.n. E9  del 23/12/2015;15/02/2016;950;0;25;1;Spese correnti;3;Acquisto di beni e servizi;2;Acquisto di servizi;9;Manutenzione ordinaria e riparazioni;1;Manutenzione ordinaria e riparazioni di mezzi di trasporto ad uso civile, di sicurezza e ordine pubblico;15/02/2016
66;1;0;623;623;COOPERATIVA SOCIALE CODAMS DUE;Z30171DB14;SALDO Fatt.n. 0512PA  del 31/12/2015;15/02/2016;3115;0;129;1;Spese correnti;3;Acquisto di beni e servizi;2;Acquisto di servizi;99;Altri servizi;999;Altri servizi diversi n.a.c.;15/02/2016
67;1;0;622,69;622,69;BRONI-STRADELLA Spa;Z20164FF41;SALDO Fatt.n. 647/E  del 31/12/2015;15/02/2016;2940;1;109;1;Spese correnti;3;Acquisto di beni e servizi;2;Acquisto di servizi;99;Altri servizi;999;Altri servizi diversi n.a.c.;15/02/2016
68;1;0;1.094,34;1.094,34;STUDIO ASS.AVV.BRAMBILLA FUZIER;ZF514B2F70;SALDO Fatt.n. 64/PA  del 29/12/2015;15/02/2016;2700;0;39;1;Spese correnti;3;Acquisto di beni e servizi;2;Acquisto di servizi;11;Prestazioni professionali e specialistiche;6;Patrocinio legale;15/02/2016
69;1;0;132,37;132,37;INFORMA SRL;ZD7125D1BE;SALDO Fatt.n. 3393/E  del 18/12/2015 FATTURA DIFFERITA ELETTRONICA;15/02/2016;121;0;11;1;Spese correnti;3;Acquisto di beni e servizi;2;Acquisto di servizi;16;Servizi amministrativi;999;Altre spese per servizi amministrativi;15/02/2016
70;1;0;183;183;INFORMA SRL;ZD7125D1BE;SALDO Fatt.n. 3459/E  del 21/12/2015 FATTURA IMMEDIATA ELETTRONICA;15/02/2016;120;0;22;1;Spese correnti;3;Acquisto di beni e servizi;2;Acquisto di servizi;16;Servizi amministrativi;2;Spese postali;15/02/2016
71;1;0;3.783,00;3.783,00;COMUNE DI BRONI; ;COMPARTECIPAZIONE ALLE SPESE DEI PIANI DI ZONA ANNO 2015;15/02/2016;3400;0;34;1;Spese correnti;4;Trasferimenti correnti;1;Trasferimenti correnti a Amministrazioni Pubbliche;2;Trasferimenti correnti a Amministrazioni Locali;3;Trasferimenti correnti a Comuni;15/02/2016
86;1;0;375;375;omissis; ;CONTRIBUTO ECONOMICO STRAORDINARIO;04/03/2016;3410;0;105;1;Spese correnti;4;Trasferimenti correnti;2;Trasferimenti correnti a Famiglie;2;Interventi assistenziali;999;Altri assegni e sussidi assistenziali;04/03/2016
87;1;0;300;300;omissis; ;CONTRIBUTO ECONOMICO STRAORDINARIO;04/03/2016;3410;0;105;1;Spese correnti;4;Trasferimenti correnti;2;Trasferimenti correnti a Famiglie;2;Interventi assistenziali;999;Altri assegni e sussidi assistenziali;04/03/2016
88;1;0;450;450;omissis; ;CONTRIBUTO ECONOMICO STRAORDINARIO;04/03/2016;3410;0;105;1;Spese correnti;4;Trasferimenti correnti;2;Trasferimenti correnti a Famiglie;2;Interventi assistenziali;999;Altri assegni e sussidi assistenziali;04/03/2016
89;1;0;500;500;omissis; ;CONTRIBUTO ECONOMICO STRAORDINARIO SIG. BIANCHI NINO MEDIANTE ACCONTO RETTA;04/03/2016;3410;0;105;1;Spese correnti;4;Trasferimenti correnti;2;Trasferimenti correnti a Famiglie;2;Interventi assistenziali;999;Altri assegni e sussidi assistenziali;04/03/2016
90;1;0;388;388;omissis; ;CONTRIBUTO ECONOMICO STRAORDINARIO;04/03/2016;3410;0;105;1;Spese correnti;4;Trasferimenti correnti;2;Trasferimenti correnti a Famiglie;2;Interventi assistenziali;999;Altri assegni e sussidi assistenziali;04/03/2016
91;1;0;400;400;omissis; ;CONTRIBUTO ECONOMICO STRAORDINARIO;04/03/2016;3400;3;111;1;Spese correnti;4;Trasferimenti correnti;2;Trasferimenti correnti a Famiglie;2;Interventi assistenziali;999;Altri assegni e sussidi assistenziali;04/03/2016
92;1;0;250;250;omissis; ;CONTRIBUTO ECONOMICO STRAORDINARIO;04/03/2016;3420;0;131;1;Spese correnti;4;Trasferimenti correnti;2;Trasferimenti correnti a Famiglie;2;Interventi assistenziali;999;Altri assegni e sussidi assistenziali;04/03/2016
93;1;0;612;612;COMUNE DI CAMPOSPINOSO; ;omissis;04/03/2016;3410;0;105;1;Spese correnti;4;Trasferimenti correnti;2;Trasferimenti correnti a Famiglie;2;Interventi assistenziali;999;Altri assegni e sussidi assistenziali;04/03/2016
94;1;0;225;225;COMUNE DI CAMPOSPINOSO; ;omissis;04/03/2016;3410;0;105;1;Spese correnti;4;Trasferimenti correnti;2;Trasferimenti correnti a Famiglie;2;Interventi assistenziali;999;Altri assegni e sussidi assistenziali;04/03/2016
97;1;0;44,67;44,67;omissis; ;CONTRIBUTO ECONOMICO STRAORDINARIO MEDIANTE ACQUISTO GENERI PRIMA NECESSITA';11/03/2016;3410;0;105;1;Spese correnti;4;Trasferimenti correnti;2;Trasferimenti correnti a Famiglie;2;Interventi assistenziali;999;Altri assegni e sussidi assistenziali;11/03/2016
98;1;0;3.550,00;3.550,00;ERARIO; ;VERSAMENTO IVA A DEBITO ANNO 2015 - SCAD. 16.03.2016;11/03/2016;686;0;94;1;Spese correnti;10;Altre spese correnti;3;Versamenti IVA a debito;1;Versamenti IVA a debito per le gestioni commerciali;1;Versamenti IVA a debito per le gestioni commerciali;11/03/2016
99;1;0;29,87;29,87;TELECOM ITALIA SPA; ;SALDO Fatt.n. 8B01390762  del 07/12/2015;14/03/2016;660;0;89;1;Spese correnti;3;Acquisto di beni e servizi;2;Acquisto di servizi;99;Altri servizi;999;Altri servizi diversi n.a.c.;14/03/2016
100;1;0;590,48;1.180,96;COOPERATIVA TICINO; ;SALDO Fatt.n. FATTPA 11_16  del 01/02/2016;14/03/2016;390;0;0;1;Spese correnti;3;Acquisto di beni e servizi;2;Acquisto di servizi;13;Servizi ausiliari per il funzionamento dell'ente;2;Servizi di pulizia e lavanderia;14/03/2016
100;2;0;590,48;1.180,96;COOPERATIVA TICINO; ;SALDO Fatt.n. FATTPA 17_16  del 01/03/2016;14/03/2016;390;0;0;1;Spese correnti;3;Acquisto di beni e servizi;2;Acquisto di servizi;13;Servizi ausiliari per il funzionamento dell'ente;2;Servizi di pulizia e lavanderia;14/03/2016
101;1;0;66,19;359,3;INFORMA SRL;ZD7125D1BE;SALDO Fatt.n. 167/E  del 28/01/2016 FATTURA DIFFERITA ELETTRONICA;14/03/2016;121;0;0;1;Spese correnti;3;Acquisto di beni e servizi;2;Acquisto di servizi;16;Servizi amministrativi;999;Altre spese per servizi amministrativi;14/03/2016
101;2;0;293,11;359,3;INFORMA SRL;ZD7125D1BE;SALDO Fatt.n. 521/E  del 26/02/2016 FATTURA DIFFERITA ELETTRONICA;14/03/2016;121;0;0;1;Spese correnti;3;Acquisto di beni e servizi;2;Acquisto di servizi;16;Servizi amministrativi;999;Altre spese per servizi amministrativi;14/03/2016
102;1;0;6.676,45;6.676,45;BRUSCHI GEOM.MAURIZIO; ;SALDO Fatt.n. 02/2016/PA  del 17/02/2016;14/03/2016;2930;0;107;1;Spese correnti;3;Acquisto di beni e servizi;2;Acquisto di servizi;99;Altri servizi;999;Altri servizi diversi n.a.c.;14/03/2016
103;1;0;9.412,93;18.825,86;BRONI-STRADELLA Spa;Z4E1882A8D;SALDO Fatt.n. 20/E  del 22/02/2016;14/03/2016;2940;0;0;1;Spese correnti;3;Acquisto di beni e servizi;2;Acquisto di servizi;99;Altri servizi;999;Altri servizi diversi n.a.c.;14/03/2016
103;2;0;9.412,93;18.825,86;BRONI-STRADELLA Spa;Z4E1882A8D;SALDO Fatt.n. 58/E  del 07/03/2016;14/03/2016;2940;0;0;1;Spese correnti;3;Acquisto di beni e servizi;2;Acquisto di servizi;99;Altri servizi;999;Altri servizi diversi n.a.c.;14/03/2016
104;1;0;2.183,50;2.183,50;BRONI-STRADELLA Spa;Z4E1882A8D;SALDO Fatt.n. 100/E  del 07/03/2016;14/03/2016;2930;0;0;1;Spese correnti;3;Acquisto di beni e servizi;2;Acquisto di servizi;99;Altri servizi;999;Altri servizi diversi n.a.c.;14/03/2016
105;1;0;654,74;654,74;ECOTEC S.R.L.; ;SALDO Fatt.n. 10  del 25/01/2016 Ft Split Payment ex art.17-ter DPR 633/72;14/03/2016;390;1;0;1;Spese correnti;3;Acquisto di beni e servizi;2;Acquisto di servizi;9;Manutenzione ordinaria e riparazioni;6;Manutenzione ordinaria e riparazioni di macchine per ufficio;14/03/2016
106;1;0;1.831,57;1.831,57;TEMPORARY S.p.A con Unico Socio; ;SALDO Fatt.n. 2016000013-E  del 29/01/2016;14/03/2016;125;0;0;1;Spese correnti;3;Acquisto di beni e servizi;2;Acquisto di servizi;12;Lavoro flessibile, quota LSU e acquisto di servizi da agenzie di lavoro interinale;1;Acquisto di servizi da agenzie di lavoro interinale;14/03/2016
107;1;0;1.238,75;1.238,75;MARTA S.C.R.L.; ;SALDO Fatt.n. 84/EL  del 31/01/2016 Fatture clienti PA elettronica;14/03/2016;1582;0;0;1;Spese correnti;3;Acquisto di beni e servizi;2;Acquisto di servizi;99;Altri servizi;999;Altri servizi diversi n.a.c.;14/03/2016
108;1;0;10;1.637,00;LIBARNA GAS SPA; ;SALDO Fatt.n. 100106  del 26/02/2016;14/03/2016;660;0;0;1;Spese correnti;3;Acquisto di beni e servizi;2;Acquisto di servizi;99;Altri servizi;999;Altri servizi diversi n.a.c.;14/03/2016
108;2;0;11;1.637,00;LIBARNA GAS SPA; ;SALDO Fatt.n. 100104  del 26/02/2016;14/03/2016;660;0;0;1;Spese correnti;3;Acquisto di beni e servizi;2;Acquisto di servizi;99;Altri servizi;999;Altri servizi diversi n.a.c.;14/03/2016
108;3;0;123;1.637,00;LIBARNA GAS SPA; ;SALDO Fatt.n. 100107  del 26/02/2016;14/03/2016;660;0;0;1;Spese correnti;3;Acquisto di beni e servizi;2;Acquisto di servizi;99;Altri servizi;999;Altri servizi diversi n.a.c.;14/03/2016
108;4;0;177;1.637,00;LIBARNA GAS SPA; ;SALDO Fatt.n. 100110  del 26/02/2016;14/03/2016;660;0;0;1;Spese correnti;3;Acquisto di beni e servizi;2;Acquisto di servizi;99;Altri servizi;999;Altri servizi diversi n.a.c.;14/03/2016
108;5;0;254;1.637,00;LIBARNA GAS SPA; ;SALDO Fatt.n. 100109  del 26/02/2016;14/03/2016;660;0;0;1;Spese correnti;3;Acquisto di beni e servizi;2;Acquisto di servizi;99;Altri servizi;999;Altri servizi diversi n.a.c.;14/03/2016
108;6;0;489;1.637,00;LIBARNA GAS SPA; ;SALDO Fatt.n. 100108  del 26/02/2016;14/03/2016;660;0;0;1;Spese correnti;3;Acquisto di beni e servizi;2;Acquisto di servizi;99;Altri servizi;999;Altri servizi diversi n.a.c.;14/03/2016
108;7;0;573;1.637,00;LIBARNA GAS SPA; ;SALDO Fatt.n. 100105  del 26/02/2016;14/03/2016;660;0;0;1;Spese correnti;3;Acquisto di beni e servizi;2;Acquisto di servizi;99;Altri servizi;999;Altri servizi diversi n.a.c.;14/03/2016
109;1;0;799,77;799,77;GIORGIO DELLA VALLE SRL;59588ZOFD;SALDO Fatt.n. 22  del 29/02/2016 MESE DI FEBBRAIO Ns. autista per guida Vs. scuolabus a.s. 2015 / 2016;14/03/2016;1584;0;0;1;Spese correnti;3;Acquisto di beni e servizi;2;Acquisto di servizi;99;Altri servizi;999;Altri servizi diversi n.a.c.;14/03/2016
126;1;0;907,5;3.457,50;LA SEGNALETICA ITALIA GROUP SRL;Z7F103EF59;ACCONTO Fatt.n. 70  del 30/07/2014 TABELLONI INFORMATIVI E SEGNALETICA PER ITINERARI CICLO-PEDONALI - V BANDO DISTRETTI COMMERCIO;30/03/2016;6000;0;69;2;Spese in conto capitale;5;Altre spese in conto capitale;99;Altre spese in conto capitale n.a.c.;99;Altre spese in conto capitale n.a.c.;999;Altre spese in conto capitale n.a.c.;30/03/2016
126;2;0;2.550,00;3.457,50;LA SEGNALETICA ITALIA GROUP SRL;Z7F103EF59;SALDO Fatt.n. 70  del 30/07/2014 TABELLONI INFORMATIVI E SEGNALETICA PER ITINERARI CICLO-PEDONALI - V BANDO DISTRETTI COMMERCIO;30/03/2016;6000;0;69;2;Spese in conto capitale;5;Altre spese in conto capitale;99;Altre spese in conto capitale n.a.c.;99;Altre spese in conto capitale n.a.c.;999;Altre spese in conto capitale n.a.c.;30/03/2016
128;1;0;204;204;LIBARNA GAS SPA; ;Contributo straordinario famiglia El Aoudy Wafaa mediante pagamento in conto utenze metano scadute ( UTENZA N. 0003.01.01.00007186);01/04/2016;3420;0;1;1;Spese correnti;4;Trasferimenti correnti;2;Trasferimenti correnti a Famiglie;2;Interventi assistenziali;999;Altri assegni e sussidi assistenziali;01/04/2016
129;1;0;532;532;MONTAGNA ASSICURAZIONI; ;POLIZZA FIAT PUNTO N. 166.13.77931 SCAD. 25.03.2016;04/04/2016;390;3;0;1;Spese correnti;3;Acquisto di beni e servizi;2;Acquisto di servizi;99;Altri servizi;999;Altri servizi diversi n.a.c.;04/04/2016
130;1;0;460;460;COMUNE DI STRADELLA; ;Servizio Punto Rosa -  gestione 2014;08/04/2016;3425;0;139;1;Spese correnti;4;Trasferimenti correnti;1;Trasferimenti correnti a Amministrazioni Pubbliche;2;Trasferimenti correnti a Amministrazioni Locali;3;Trasferimenti correnti a Comuni;08/04/2016
134;1;0;30;291,26;TELECOM ITALIA SPA;54663373FE;SALDO Fatt.n. 8B01390628  del 07/12/2015 - PROVV.N. 21 DEL 15.03.2016;11/04/2016;660;0;89;1;Spese correnti;3;Acquisto di beni e servizi;2;Acquisto di servizi;99;Altri servizi;999;Altri servizi diversi n.a.c.;11/04/2016
134;2;0;30,45;291,26;TELECOM ITALIA SPA;54663373FE;SALDO Fatt.n. 8B01387209  del 07/12/2015 - PROVV.N. 23 DEL 15.03.2016;11/04/2016;660;0;89;1;Spese correnti;3;Acquisto di beni e servizi;2;Acquisto di servizi;99;Altri servizi;999;Altri servizi diversi n.a.c.;11/04/2016
134;3;0;58,74;291,26;TELECOM ITALIA SPA;54663373FE;SALDO Fatt.n. 8B01389715  del 07/12/2015 - PROVV.N. 22 DEL 15.03.2016;11/04/2016;660;0;89;1;Spese correnti;3;Acquisto di beni e servizi;2;Acquisto di servizi;99;Altri servizi;999;Altri servizi diversi n.a.c.;11/04/2016
134;4;0;80,64;291,26;TELECOM ITALIA SPA;54663373FE;SALDO Fatt.n. 8B01389149  del 07/12/2015 - PROVV.N. 24 DEL 15.03.2016;11/04/2016;660;0;89;1;Spese correnti;3;Acquisto di beni e servizi;2;Acquisto di servizi;99;Altri servizi;999;Altri servizi diversi n.a.c.;11/04/2016
134;5;0;91,43;291,26;TELECOM ITALIA SPA;54663373FE;SALDO Fatt.n. 8B01387727  del 07/12/2015 - PROVV.N. 20 DEL 15.03.2016;11/04/2016;660;0;89;1;Spese correnti;3;Acquisto di beni e servizi;2;Acquisto di servizi;99;Altri servizi;999;Altri servizi diversi n.a.c.;11/04/2016
135;1;0;569,39;569,39;ENEL SERVIZIO ELETTRICO SPA; ;ILLUMINAZIONE PUBBLICA CONG. NOV.2014-OTTOBRE 2015 SCAD. 17.03.2016  ( FT ELETTRONICA REG.CAMPOSPINOSO) - PROVV.N. 26 DEL 17.03.2016;11/04/2016;2390;0;103;1;Spese correnti;3;Acquisto di beni e servizi;2;Acquisto di servizi;5;Utenze e canoni;4;Energia elettrica;11/04/2016
136;1;0;71,59;71,59;ENEL SERVIZIO ELETTRICO SPA; ;SALDO Fatt.n. 188550270101213  del 09/03/2016 - PROVV.N. 27 DEL 29.03.2016;11/04/2016;661;0;0;1;Spese correnti;3;Acquisto di beni e servizi;2;Acquisto di servizi;5;Utenze e canoni;4;Energia elettrica;11/04/2016
138;1;0;186,86;186,86;ENEL SERVIZIO ELETTRICO SPA; ;SALDO Fatt.n. 188550080108516  del 09/03/2016;11/04/2016;2390;0;0;1;Spese correnti;3;Acquisto di beni e servizi;2;Acquisto di servizi;5;Utenze e canoni;4;Energia elettrica;11/04/2016
141;1;0;61;61;EURO SEGNAL SRL; ;SALDO Fatt.n. PA-0011  del 02/03/2016 RIF. DDT DEL 02/03/2016;11/04/2016;390;1;0;1;Spese correnti;3;Acquisto di beni e servizi;2;Acquisto di servizi;9;Manutenzione ordinaria e riparazioni;6;Manutenzione ordinaria e riparazioni di macchine per ufficio;11/04/2016
142;1;0;161,85;161,85;C.M.E. MARMI E GRANITI;35487297CE;SALDO Fatt.n. 1/PA  del 20/01/2016 COTTIMO FIDUCIARIO;11/04/2016;3470;1;0;1;Spese correnti;3;Acquisto di beni e servizi;2;Acquisto di servizi;99;Altri servizi;999;Altri servizi diversi n.a.c.;11/04/2016
143;1;0;608,41;608,41;DIRETE SOC. COOP.;ZF31674F76;SALDO Fatt.n. 20  del 29/02/2016;11/04/2016;386;0;82;1;Spese correnti;3;Acquisto di beni e servizi;1;Acquisto di beni;2;Altri beni di consumo;5;Accessori per uffici e alloggi;11/04/2016
144;1;0;17,71;37,21;PAVIA ACQUE S.C.A.R.L.; ;SALDO Fatt.n. 1350020161500044700  del 03/03/2016 B/Bollettazione;11/04/2016;3471;0;115;1;Spese correnti;3;Acquisto di beni e servizi;2;Acquisto di servizi;5;Utenze e canoni;5;Acqua;11/04/2016
144;2;0;19,5;37,21;PAVIA ACQUE S.C.A.R.L.; ;SALDO Fatt.n. 1350020161500045200  del 03/03/2016 B/Bollettazione;11/04/2016;3471;0;115;1;Spese correnti;3;Acquisto di beni e servizi;2;Acquisto di servizi;5;Utenze e canoni;5;Acqua;11/04/2016
145;1;0;3,95;52,85;PAVIA ACQUE S.C.A.R.L.; ;SALDO Fatt.n. 1350020161500045500  del 03/03/2016 B/Bollettazione;11/04/2016;660;0;89;1;Spese correnti;3;Acquisto di beni e servizi;2;Acquisto di servizi;99;Altri servizi;999;Altri servizi diversi n.a.c.;11/04/2016
145;2;0;3,95;52,85;PAVIA ACQUE S.C.A.R.L.; ;SALDO Fatt.n. 1350020161500045600  del 03/03/2016 B/Bollettazione;11/04/2016;660;0;89;1;Spese correnti;3;Acquisto di beni e servizi;2;Acquisto di servizi;99;Altri servizi;999;Altri servizi diversi n.a.c.;11/04/2016
145;3;0;3,95;52,85;PAVIA ACQUE S.C.A.R.L.; ;SALDO Fatt.n. 1350020161500045300  del 03/03/2016 B/Bollettazione;11/04/2016;660;0;89;1;Spese correnti;3;Acquisto di beni e servizi;2;Acquisto di servizi;99;Altri servizi;999;Altri servizi diversi n.a.c.;11/04/2016
145;4;0;7,67;52,85;PAVIA ACQUE S.C.A.R.L.; ;SALDO Fatt.n. 1350020161500045400  del 03/03/2016 B/Bollettazione;11/04/2016;660;0;89;1;Spese correnti;3;Acquisto di beni e servizi;2;Acquisto di servizi;99;Altri servizi;999;Altri servizi diversi n.a.c.;11/04/2016
145;5;0;14,55;52,85;PAVIA ACQUE S.C.A.R.L.; ;SALDO Fatt.n. 1350020161500045000  del 03/03/2016 B/Bollettazione;11/04/2016;660;0;89;1;Spese correnti;3;Acquisto di beni e servizi;2;Acquisto di servizi;99;Altri servizi;999;Altri servizi diversi n.a.c.;11/04/2016
145;6;0;18,78;52,85;PAVIA ACQUE S.C.A.R.L.; ;SALDO Fatt.n. 1350020161500044800  del 03/03/2016 B/Bollettazione;11/04/2016;660;0;89;1;Spese correnti;3;Acquisto di beni e servizi;2;Acquisto di servizi;99;Altri servizi;999;Altri servizi diversi n.a.c.;11/04/2016
146;1;0;3,95;56,6;PAVIA ACQUE S.C.A.R.L.; ;SALDO Fatt.n. 1350020161500045700  del 03/03/2016 B/Bollettazione;11/04/2016;2840;0;104;1;Spese correnti;3;Acquisto di beni e servizi;2;Acquisto di servizi;5;Utenze e canoni;5;Acqua;11/04/2016
146;2;0;19,75;56,6;PAVIA ACQUE S.C.A.R.L.; ;SALDO Fatt.n. 1350020161500044900  del 03/03/2016 B/Bollettazione;11/04/2016;2840;0;104;1;Spese correnti;3;Acquisto di beni e servizi;2;Acquisto di servizi;5;Utenze e canoni;5;Acqua;11/04/2016
146;3;0;32,9;56,6;PAVIA ACQUE S.C.A.R.L.; ;SALDO Fatt.n. 1350020161500045800  del 03/03/2016 B/Bollettazione;11/04/2016;2840;0;104;1;Spese correnti;3;Acquisto di beni e servizi;2;Acquisto di servizi;5;Utenze e canoni;5;Acqua;11/04/2016
147;1;0;2.485,14;2.485,14;ECHO SOCIETA' COOPERATIVA; ;SALDO Fatt.n. FATTPA 4_16  del 17/03/2016;11/04/2016;665;0;93;1;Spese correnti;3;Acquisto di beni e servizi;2;Acquisto di servizi;16;Servizi amministrativi;999;Altre spese per servizi amministrativi;11/04/2016
148;1;0;1.141,92;1.141,92;Bianchi Ilario;Z210F13408;SALDO Fatt.n. FATTPA 1_16  del 04/02/2016;11/04/2016;5000;0;2;2;Spese in conto capitale;5;Altre spese in conto capitale;99;Altre spese in conto capitale n.a.c.;99;Altre spese in conto capitale n.a.c.;999;Altre spese in conto capitale n.a.c.;11/04/2016
149;1;0;2.600,75;2.600,75;FERRARESI ANGELA;Z5F1216164;SALDO Fatt.n. 1/E  del 22/03/2016 PROGETTAZIONE E ATTIVITA' PROFESSIONALI;11/04/2016;6500;0;81;2;Spese in conto capitale;5;Altre spese in conto capitale;99;Altre spese in conto capitale n.a.c.;99;Altre spese in conto capitale n.a.c.;999;Altre spese in conto capitale n.a.c.;11/04/2016
150;1;0;507,3;507,3;COOPERATIVA SOCIALE CODAMS DUE;Z30171DB14;SALDO Fatt.n. 0051PA  del 31/01/2016;11/04/2016;3115;0;0;1;Spese correnti;3;Acquisto di beni e servizi;2;Acquisto di servizi;99;Altri servizi;999;Altri servizi diversi n.a.c.;11/04/2016
151;1;0;1.907,80;1.907,80;TEMPORARY S.p.A con Unico Socio; ;SALDO Fatt.n. 2016000188-E  del 29/02/2016;11/04/2016;125;0;0;1;Spese correnti;3;Acquisto di beni e servizi;2;Acquisto di servizi;12;Lavoro flessibile, quota LSU e acquisto di servizi da agenzie di lavoro interinale;1;Acquisto di servizi da agenzie di lavoro interinale;11/04/2016
152;1;0;3.172,00;3.172,00;BLU SRL a socio unico;6573903C5C;SALDO Fatt.n. FATTPA 1_16  del 29/02/2016;11/04/2016;480;0;0;1;Spese correnti;3;Acquisto di beni e servizi;2;Acquisto di servizi;11;Prestazioni professionali e specialistiche;999;Altre prestazioni professionali e specialistiche n.a.c.;11/04/2016
153;1;0;45,89;45,89;omissis; ;CONTRIBUTO STRAORDINARIO MEDIANTE GENERI ALIMENTARI DI PRIMA NECESSITA';14/04/2016;3410;0;105;1;Spese correnti;4;Trasferimenti correnti;2;Trasferimenti correnti a Famiglie;2;Interventi assistenziali;999;Altri assegni e sussidi assistenziali;14/04/2016
169;1;0;3.240,97;3.240,97;ERARIO; ;VERSAMENTO IVA I TRIM. 2016  SCAD. 16.05.2016;10/05/2016;686;0;0;1;Spese correnti;10;Altre spese correnti;3;Versamenti IVA a debito;1;Versamenti IVA a debito per le gestioni commerciali;1;Versamenti IVA a debito per le gestioni commerciali;10/05/2016
170;1;0;123,2;123,2;ENEL SERVIZIO ELETTRICO SPA; ;ILL.PUBBLICA MAR-APRILE 2016 SCAD. 29.04.2016 - FATT.ELETTRONICA PERVENUTA AL COMUNE DI CAMPOSPINOSO N. 188550130100511 DEL 09.04.2016 - PROVV.N. 37 DEL 29.04.2016;10/05/2016;2390;0;0;1;Spese correnti;3;Acquisto di beni e servizi;2;Acquisto di servizi;5;Utenze e canoni;4;Energia elettrica;10/05/2016
171;1;0;74,1;74,1;ENEL SERVIZIO ELETTRICO SPA; ;SALDO Fatt.n. 188550270101214  del 09/04/2016 - PROVV.N. 36 DEL 29.04.2016;10/05/2016;660;0;0;1;Spese correnti;3;Acquisto di beni e servizi;2;Acquisto di servizi;99;Altri servizi;999;Altri servizi diversi n.a.c.;10/05/2016
173;1;0;44,68;44,68;omissis; ;CONTRIBUTO ECONOMICO STRAORDINARIO MEDIANTE ACQUISTO GENERI PRIMA NECESSITA';12/05/2016;3410;0;105;1;Spese correnti;4;Trasferimenti correnti;2;Trasferimenti correnti a Famiglie;2;Interventi assistenziali;999;Altri assegni e sussidi assistenziali;12/05/2016
174;1;0;140,25;140,25;POSTE ITALIANE SPA; ;ACQUISTO FRANCOBOLLI - RIC. N. 1 DEL 16.05.2016;17/05/2016;120;0;0;1;Spese correnti;3;Acquisto di beni e servizi;2;Acquisto di servizi;16;Servizi amministrativi;2;Spese postali;17/05/2016
175;1;0;2.599,00;2.599,00;CITTA' DI STRADELLA; ;QUOTA FREQUENZA C.D.D. UTENTI CARBONARO E SILVESTRI MESI DI GENNAIO, FEBBRAIO E MARZO 2016;19/05/2016;3400;1;3;1;Spese correnti;4;Trasferimenti correnti;1;Trasferimenti correnti a Amministrazioni Pubbliche;2;Trasferimenti correnti a Amministrazioni Locali;3;Trasferimenti correnti a Comuni;19/05/2016
176;1;0;5.474,32;5.474,32;PONZONE GIANPIERO E C. SAS;Z901252F75;SALDO Fatt.n. 4/PA  del 19/04/2016;19/05/2016;2300;0;4;1;Spese correnti;3;Acquisto di beni e servizi;2;Acquisto di servizi;99;Altri servizi;999;Altri servizi diversi n.a.c.;19/05/2016
177;1;0;9;1.368,00;LIBARNA GAS SPA; ;SALDO Fatt.n. 100173  del 07/04/2016;19/05/2016;660;0;0;1;Spese correnti;3;Acquisto di beni e servizi;2;Acquisto di servizi;99;Altri servizi;999;Altri servizi diversi n.a.c.;19/05/2016
177;2;0;10;1.368,00;LIBARNA GAS SPA; ;SALDO Fatt.n. 100177  del 07/04/2016;19/05/2016;660;0;0;1;Spese correnti;3;Acquisto di beni e servizi;2;Acquisto di servizi;99;Altri servizi;999;Altri servizi diversi n.a.c.;19/05/2016
177;3;0;135;1.368,00;LIBARNA GAS SPA; ;SALDO Fatt.n. 100178  del 07/04/2016;19/05/2016;660;0;0;1;Spese correnti;3;Acquisto di beni e servizi;2;Acquisto di servizi;99;Altri servizi;999;Altri servizi diversi n.a.c.;19/05/2016
177;4;0;137;1.368,00;LIBARNA GAS SPA; ;SALDO Fatt.n. 100175  del 07/04/2016;19/05/2016;660;0;0;1;Spese correnti;3;Acquisto di beni e servizi;2;Acquisto di servizi;99;Altri servizi;999;Altri servizi diversi n.a.c.;19/05/2016
177;5;0;279;1.368,00;LIBARNA GAS SPA; ;SALDO Fatt.n. 100176  del 07/04/2016;19/05/2016;660;0;0;1;Spese correnti;3;Acquisto di beni e servizi;2;Acquisto di servizi;99;Altri servizi;999;Altri servizi diversi n.a.c.;19/05/2016
177;6;0;387;1.368,00;LIBARNA GAS SPA; ;SALDO Fatt.n. 100179  del 07/04/2016;19/05/2016;660;0;0;1;Spese correnti;3;Acquisto di beni e servizi;2;Acquisto di servizi;99;Altri servizi;999;Altri servizi diversi n.a.c.;19/05/2016
177;7;0;411;1.368,00;LIBARNA GAS SPA; ;SALDO Fatt.n. 100174  del 07/04/2016;19/05/2016;660;0;0;1;Spese correnti;3;Acquisto di beni e servizi;2;Acquisto di servizi;99;Altri servizi;999;Altri servizi diversi n.a.c.;19/05/2016
178;1;0;21,79;21,79;CATTANEO ADRIANA GUGLIELMINA; ;SALDO Fatt.n. 000001-2016-FE  del 05/04/2016 RIMBORSO CEDOLE SCUOLE ELEMENTARI 2015/2016;19/05/2016;1330;2;96;1;Spese correnti;4;Trasferimenti correnti;3;Trasferimenti correnti a Imprese;99;Trasferimenti correnti a altre imprese;999;Trasferimenti correnti a altre imprese;19/05/2016
179;1;0;29,61;29,61;EMMEBI DI BALLONI FRANCESCO; ;SALDO Fatt.n. FATTPA 18_16  del 24/02/2016;19/05/2016;1330;2;96;1;Spese correnti;4;Trasferimenti correnti;3;Trasferimenti correnti a Imprese;99;Trasferimenti correnti a altre imprese;999;Trasferimenti correnti a altre imprese;19/05/2016
180;1;0;4.189,86;4.189,86;CAZZOLA LUIGI CLAUDIO;Z8818B2066;SALDO Fatt.n. 01E  del 12/04/2016 RIPRISTINO RECINZIONE DEL PALAZZO MUNICIPALE DEL COMUNE DI ALBAREDO ARNABOLDI;19/05/2016;5005;0;118;2;Spese in conto capitale;5;Altre spese in conto capitale;99;Altre spese in conto capitale n.a.c.;99;Altre spese in conto capitale n.a.c.;999;Altre spese in conto capitale n.a.c.;19/05/2016
181;1;0;2.219,89;2.219,89;CRISTIANO ALBERTI;ZC4106861D;SALDO Fatt.n. FATTPA 3_16  del 02/04/2016;19/05/2016;7833;0;78;2;Spese in conto capitale;5;Altre spese in conto capitale;99;Altre spese in conto capitale n.a.c.;99;Altre spese in conto capitale n.a.c.;999;Altre spese in conto capitale n.a.c.;19/05/2016
182;1;0;590,48;590,48;COOPERATIVA TICINO;6057911A4B;SALDO Fatt.n. FATTPA 24_16  del 01/04/2016;19/05/2016;390;0;5;1;Spese correnti;3;Acquisto di beni e servizi;2;Acquisto di servizi;13;Servizi ausiliari per il funzionamento dell'ente;2;Servizi di pulizia e lavanderia;19/05/2016
183;1;0;2.035,00;2.035,00;BRONI-STRADELLA Spa;Z4E1882A8D;SALDO Fatt.n. 178/E  del 31/03/2016;19/05/2016;2930;0;6;1;Spese correnti;3;Acquisto di beni e servizi;2;Acquisto di servizi;99;Altri servizi;999;Altri servizi diversi n.a.c.;19/05/2016
184;1;0;301,34;938,79;GIORGIO DELLA VALLE SRL;595888ZOFD;SALDO Fatt.n. 68  del 31/03/2016 Ns. autista per guida Vs. scuolabus a s 2015 2016 MESE DI MARZO 2016;19/05/2016;1584;0;7;1;Spese correnti;3;Acquisto di beni e servizi;2;Acquisto di servizi;99;Altri servizi;999;Altri servizi diversi n.a.c.;19/05/2016
184;2;0;637,45;938,79;GIORGIO DELLA VALLE SRL;ZDA162765;SALDO Fatt.n. 130  del 29/04/2016 NOSTRO AUTISTA PER GUIDA VS. SCUOLABUS  MESE DI APRILE 2016;19/05/2016;1584;0;7;1;Spese correnti;3;Acquisto di beni e servizi;2;Acquisto di servizi;99;Altri servizi;999;Altri servizi diversi n.a.c.;19/05/2016
185;1;0;9.412,93;9.412,93;BRONI-STRADELLA Spa;Z4E1882A8D;SALDO Fatt.n. 117/E  del 31/03/2016;19/05/2016;2940;0;8;1;Spese correnti;3;Acquisto di beni e servizi;2;Acquisto di servizi;99;Altri servizi;999;Altri servizi diversi n.a.c.;19/05/2016
186;1;0;10.328,52;10.328,52;BRONI-STRADELLA Spa; ;SALDO Fatt.n. 465/E  del 06/11/2015;19/05/2016;7846;0;119;2;Spese in conto capitale;5;Altre spese in conto capitale;99;Altre spese in conto capitale n.a.c.;99;Altre spese in conto capitale n.a.c.;999;Altre spese in conto capitale n.a.c.;19/05/2016
187;1;0;137,25;357,22;MAGGIOLI SPA;Z371898843;SALDO Fatt.n. 0002108927  del 31/03/2016 FATT. IVA SPLIT P.;19/05/2016;110;2;0;1;Spese correnti;3;Acquisto di beni e servizi;1;Acquisto di beni;2;Altri beni di consumo;1;Carta, cancelleria e stampati;19/05/2016
187;2;0;219,97;357,22;MAGGIOLI SPA;Z371898843;SALDO Fatt.n. 0002105893  del 29/02/2016 FATT. IVA SPLIT P.;19/05/2016;110;2;0;1;Spese correnti;3;Acquisto di beni e servizi;1;Acquisto di beni;2;Altri beni di consumo;1;Carta, cancelleria e stampati;19/05/2016
188;1;0;75,64;368,44;INFORMA SRL;ZD7125D1BE;SALDO Fatt.n. 938/E  del 25/03/2016 FATTURA DIFFERITA ELETTRONICA;19/05/2016;121;0;9;1;Spese correnti;3;Acquisto di beni e servizi;2;Acquisto di servizi;16;Servizi amministrativi;999;Altre spese per servizi amministrativi;19/05/2016
188;2;0;292,8;368,44;INFORMA SRL;Z11184CCF2;SALDO Fatt.n. 1205/E  del 31/03/2016 FATTURA IMMEDIATA ELETTRONICA;19/05/2016;121;0;9;1;Spese correnti;3;Acquisto di beni e servizi;2;Acquisto di servizi;16;Servizi amministrativi;999;Altre spese per servizi amministrativi;19/05/2016
189;1;0;1.491,93;1.491,93;MARTA S.C.R.L.; ;SALDO Fatt.n. 243/EL  del 29/02/2016 Fatture clienti PA elettronica;19/05/2016;1582;0;10;1;Spese correnti;3;Acquisto di beni e servizi;2;Acquisto di servizi;99;Altri servizi;999;Altri servizi diversi n.a.c.;19/05/2016
190;1;0;106,29;493,99;C.M.E. MARMI E GRANITI;35487297CE;SALDO Fatt.n. 7/PA  del 03/03/2016 COTTIMO FIDUCIARIO;19/05/2016;3470;1;0;1;Spese correnti;3;Acquisto di beni e servizi;2;Acquisto di servizi;99;Altri servizi;999;Altri servizi diversi n.a.c.;19/05/2016
190;2;0;387,7;493,99;C.M.E. MARMI E GRANITI;35487297CE;SALDO Fatt.n. 3/PA  del 08/02/2016 COTTIMO FIDUCIARIO;19/05/2016;3470;1;0;1;Spese correnti;3;Acquisto di beni e servizi;2;Acquisto di servizi;99;Altri servizi;999;Altri servizi diversi n.a.c.;19/05/2016
191;1;0;148,45;148,45;UNIPOL SAI - AGENTE ARDISSONE PAOLO; ;POLIZZE N. 122/761575534 E N. 44/761681573 SCAD. 21.05.2016;20/05/2016;390;1;0;1;Spese correnti;3;Acquisto di beni e servizi;2;Acquisto di servizi;9;Manutenzione ordinaria e riparazioni;6;Manutenzione ordinaria e riparazioni di macchine per ufficio;20/05/2016
192;1;0;23,77;23,77;TELECOM ITALIA SPA; ;SALDO Fatt.n. 8B00366152  del 06/04/2016 VIA FALCONE;20/05/2016;660;0;0;1;Spese correnti;3;Acquisto di beni e servizi;2;Acquisto di servizi;99;Altri servizi;999;Altri servizi diversi n.a.c.;20/05/2016
193;1;0;23,85;218,96;TELECOM ITALIA SPA;54663373FE;SALDO Fatt.n. 8B00130133  del 05/02/2016 - PROVV. DEL 17.05.2016;20/05/2016;660;0;0;1;Spese correnti;3;Acquisto di beni e servizi;2;Acquisto di servizi;99;Altri servizi;999;Altri servizi diversi n.a.c.;20/05/2016
193;2;0;24,27;218,96;TELECOM ITALIA SPA;54663373FE;SALDO Fatt.n. 8B00131636  del 05/02/2016 - PROVV. USCITA DEL 17.05.2016;20/05/2016;660;0;0;1;Spese correnti;3;Acquisto di beni e servizi;2;Acquisto di servizi;99;Altri servizi;999;Altri servizi diversi n.a.c.;20/05/2016
193;3;0;26,94;218,96;TELECOM ITALIA SPA;54663373FE;SALDO Fatt.n. 8B00127183  del 05/02/2016 - PROVV. DEL 17.05.2016;20/05/2016;660;0;0;1;Spese correnti;3;Acquisto di beni e servizi;2;Acquisto di servizi;99;Altri servizi;999;Altri servizi diversi n.a.c.;20/05/2016
193;4;0;55,49;218,96;TELECOM ITALIA SPA;54663373FE;SALDO Fatt.n. 8B00133231  del 05/02/2016 - PROVV. USCITA DEL 17.05.2016;20/05/2016;660;0;0;1;Spese correnti;3;Acquisto di beni e servizi;2;Acquisto di servizi;99;Altri servizi;999;Altri servizi diversi n.a.c.;20/05/2016
193;5;0;88,41;218,96;TELECOM ITALIA SPA;54663373FE;SALDO Fatt.n. 8B00135052  del 05/02/2016 - PROVV. DEL 17.05.2016;20/05/2016;660;0;0;1;Spese correnti;3;Acquisto di beni e servizi;2;Acquisto di servizi;99;Altri servizi;999;Altri servizi diversi n.a.c.;20/05/2016
194;1;0;125,71;125,71;ENEL SERVIZIO ELETTRICO SPA; ;SALDO Fatt.n. 188550080108517  del 09/05/2016;20/05/2016;2390;0;0;1;Spese correnti;3;Acquisto di beni e servizi;2;Acquisto di servizi;5;Utenze e canoni;4;Energia elettrica;20/05/2016
195;1;0;10;498;LIBARNA GAS SPA; ;SALDO Fatt.n. 100260  del 28/04/2016;20/05/2016;660;0;0;1;Spese correnti;3;Acquisto di beni e servizi;2;Acquisto di servizi;99;Altri servizi;999;Altri servizi diversi n.a.c.;20/05/2016
195;2;0;10;498;LIBARNA GAS SPA; ;SALDO Fatt.n. 100257  del 27/04/2016;20/05/2016;660;0;0;1;Spese correnti;3;Acquisto di beni e servizi;2;Acquisto di servizi;99;Altri servizi;999;Altri servizi diversi n.a.c.;20/05/2016
195;3;0;49;498;LIBARNA GAS SPA; ;SALDO Fatt.n. 100261  del 28/04/2016;20/05/2016;660;0;0;1;Spese correnti;3;Acquisto di beni e servizi;2;Acquisto di servizi;99;Altri servizi;999;Altri servizi diversi n.a.c.;20/05/2016
195;4;0;51;498;LIBARNA GAS SPA; ;SALDO Fatt.n. 100259  del 28/04/2016;20/05/2016;660;0;0;1;Spese correnti;3;Acquisto di beni e servizi;2;Acquisto di servizi;99;Altri servizi;999;Altri servizi diversi n.a.c.;20/05/2016
195;5;0;63;498;LIBARNA GAS SPA; ;SALDO Fatt.n. 100262  del 28/04/2016;20/05/2016;660;0;0;1;Spese correnti;3;Acquisto di beni e servizi;2;Acquisto di servizi;99;Altri servizi;999;Altri servizi diversi n.a.c.;20/05/2016
195;6;0;134;498;LIBARNA GAS SPA; ;SALDO Fatt.n. 100258  del 27/04/2016;20/05/2016;660;0;0;1;Spese correnti;3;Acquisto di beni e servizi;2;Acquisto di servizi;99;Altri servizi;999;Altri servizi diversi n.a.c.;20/05/2016
195;7;0;181;498;LIBARNA GAS SPA; ;SALDO Fatt.n. 100263  del 28/04/2016;20/05/2016;660;0;0;1;Spese correnti;3;Acquisto di beni e servizi;2;Acquisto di servizi;99;Altri servizi;999;Altri servizi diversi n.a.c.;20/05/2016
196;1;0;4.270,24;4.270,24;C.I.S.A CENTRO ITALIANO SICUREZZA AZIENDALE SRL;Z4516CB12F;ACCONTO Fatt.n. 4/PA  del 22/04/2016 Rif. Determina n. 30 del 04.11.2015;20/05/2016;660;0;89;1;Spese correnti;3;Acquisto di beni e servizi;2;Acquisto di servizi;99;Altri servizi;999;Altri servizi diversi n.a.c.;20/05/2016
197;1;0;4.447,05;4.447,05;C.I.S.A CENTRO ITALIANO SICUREZZA AZIENDALE SRL; ;SALDO Fatt.n. 4/PA  del 22/04/2016 Rif. Determina n. 30 del 04.11.2015;20/05/2016;660;0;0;1;Spese correnti;3;Acquisto di beni e servizi;2;Acquisto di servizi;99;Altri servizi;999;Altri servizi diversi n.a.c.;20/05/2016
214;1;0;930;930;MONTAGNA ASSICURAZIONI; ;POLIZZA MITSUBISHI N. 166.13.81316 SCAD. 31.05.2016;31/05/2016;2750;0;0;1;Spese correnti;3;Acquisto di beni e servizi;2;Acquisto di servizi;99;Altri servizi;999;Altri servizi diversi n.a.c.;31/05/2016
215;1;0;1.941,60;1.941,60;BRUSCHI GEOM.MAURIZIO;Z2918B2049;SALDO Fatt.n. 03/2016/PA  del 20/05/2016 PULIZIA E RIPRISTINO FOSSO;31/05/2016;7841;0;125;2;Spese in conto capitale;5;Altre spese in conto capitale;99;Altre spese in conto capitale n.a.c.;99;Altre spese in conto capitale n.a.c.;999;Altre spese in conto capitale n.a.c.;31/05/2016
216;1;0;1.780,35;1.780,35;BRONI-STRADELLA Spa;Z0619425A9;SALDO Fatt.n. 257/E  del 16/05/2016 SPAZZAMENTO STRADE;31/05/2016;2930;0;12;1;Spese correnti;3;Acquisto di beni e servizi;2;Acquisto di servizi;99;Altri servizi;999;Altri servizi diversi n.a.c.;31/05/2016
217;1;0;9.412,93;9.412,93;BRONI-STRADELLA Spa;Z0619425A9;SALDO Fatt.n. 198/E  del 30/04/2016;31/05/2016;2940;0;13;1;Spese correnti;3;Acquisto di beni e servizi;2;Acquisto di servizi;99;Altri servizi;999;Altri servizi diversi n.a.c.;31/05/2016
218;1;0;44,84;44,84;ELETTRICA BRONESE BELLAN RENATO SNC; ;SALDO Fatt.n. 004/16  del 10/05/2016 MANUTENZIONE IMPIANTI ELETTRICI CIMITERI;31/05/2016;3470;3;0;1;Spese correnti;3;Acquisto di beni e servizi;2;Acquisto di servizi;9;Manutenzione ordinaria e riparazioni;8;Manutenzione ordinaria e riparazioni di beni immobili;31/05/2016
219;1;0;179,34;179,34;ELETTRICA BRONESE BELLAN RENATO SNC; ;SALDO Fatt.n. 005/16  del 11/05/2016 MANUTENZIONE IMPIANTO ELETTRICO EDIFICI COMUNALI;31/05/2016;390;4;0;1;Spese correnti;3;Acquisto di beni e servizi;2;Acquisto di servizi;9;Manutenzione ordinaria e riparazioni;8;Manutenzione ordinaria e riparazioni di beni immobili;31/05/2016
220;1;0;590,48;590,48;COOPERATIVA TICINO;6057911A4B;SALDO Fatt.n. FATTPA 36_16  del 02/05/2016;31/05/2016;390;0;5;1;Spese correnti;3;Acquisto di beni e servizi;2;Acquisto di servizi;13;Servizi ausiliari per il funzionamento dell'ente;2;Servizi di pulizia e lavanderia;31/05/2016
221;1;0;845,5;1.326,10;COOPERATIVA SOCIALE CODAMS DUE;Z30171DB14;SALDO Fatt.n. 0108PA  del 29/02/2016;31/05/2016;3115;0;11;1;Spese correnti;3;Acquisto di beni e servizi;2;Acquisto di servizi;99;Altri servizi;999;Altri servizi diversi n.a.c.;31/05/2016
221;2;0;480,6;1.326,10;COOPERATIVA SOCIALE CODAMS DUE;Z30171DB14;SALDO Fatt.n. 0173PA  del 31/03/2016;31/05/2016;3115;0;11;1;Spese correnti;3;Acquisto di beni e servizi;2;Acquisto di servizi;99;Altri servizi;999;Altri servizi diversi n.a.c.;31/05/2016
222;1;0;66,19;132,38;INFORMA SRL;ZD7125D1BE;SALDO Fatt.n. 1574/E  del 27/04/2016 FATTURA DIFFERITA ELETTRONICA;31/05/2016;121;0;9;1;Spese correnti;3;Acquisto di beni e servizi;2;Acquisto di servizi;16;Servizi amministrativi;999;Altre spese per servizi amministrativi;31/05/2016
222;2;0;66,19;132,38;INFORMA SRL;ZD7125D1BE;SALDO Fatt.n. 1959/E  del 26/05/2016 FATTURA DIFFERITA ELETTRONICA;31/05/2016;121;0;9;1;Spese correnti;3;Acquisto di beni e servizi;2;Acquisto di servizi;16;Servizi amministrativi;999;Altre spese per servizi amministrativi;31/05/2016
223;1;0;469,87;469,87;ECOTEC S.R.L.; ;SALDO Fatt.n. 90  del 13/04/2016 Ft Split Payment ex art.17-ter DPR 633/72;31/05/2016;390;1;0;1;Spese correnti;3;Acquisto di beni e servizi;2;Acquisto di servizi;9;Manutenzione ordinaria e riparazioni;6;Manutenzione ordinaria e riparazioni di macchine per ufficio;31/05/2016
224;1;0;365;2.410,00;KUWAIT PETROLEUM ITALIA SPA; ;ACCONTO Fatt.n. PJ00023086  del 31/01/2016;31/05/2016;1570;0;0;1;Spese correnti;3;Acquisto di beni e servizi;1;Acquisto di beni;2;Altri beni di consumo;2;Carburanti, combustibili e lubrificanti;31/05/2016
224;2;0;665;2.410,00;KUWAIT PETROLEUM ITALIA SPA; ;ACCONTO Fatt.n. PJ00028486  del 31/03/2016;31/05/2016;1570;0;0;1;Spese correnti;3;Acquisto di beni e servizi;1;Acquisto di beni;2;Altri beni di consumo;2;Carburanti, combustibili e lubrificanti;31/05/2016
224;3;0;686;2.410,00;KUWAIT PETROLEUM ITALIA SPA; ;ACCONTO Fatt.n. PJ00031573  del 30/04/2016;31/05/2016;1570;0;0;1;Spese correnti;3;Acquisto di beni e servizi;1;Acquisto di beni;2;Altri beni di consumo;2;Carburanti, combustibili e lubrificanti;31/05/2016
224;4;0;694;2.410,00;KUWAIT PETROLEUM ITALIA SPA; ;ACCONTO Fatt.n. PJ00025581  del 29/02/2016;31/05/2016;1570;0;0;1;Spese correnti;3;Acquisto di beni e servizi;1;Acquisto di beni;2;Altri beni di consumo;2;Carburanti, combustibili e lubrificanti;31/05/2016
225;1;0;70;330;KUWAIT PETROLEUM ITALIA SPA; ;ACCONTO Fatt.n. PJ00023086  del 31/01/2016;31/05/2016;385;1;0;1;Spese correnti;3;Acquisto di beni e servizi;1;Acquisto di beni;2;Altri beni di consumo;2;Carburanti, combustibili e lubrificanti;31/05/2016
225;2;0;70;330;KUWAIT PETROLEUM ITALIA SPA; ;ACCONTO Fatt.n. PJ00025581  del 29/02/2016;31/05/2016;385;1;0;1;Spese correnti;3;Acquisto di beni e servizi;1;Acquisto di beni;2;Altri beni di consumo;2;Carburanti, combustibili e lubrificanti;31/05/2016
225;3;0;80;330;KUWAIT PETROLEUM ITALIA SPA;ZCB1769D6B;ACCONTO Fatt.n. PJ00028486  del 31/03/2016;31/05/2016;385;1;0;1;Spese correnti;3;Acquisto di beni e servizi;1;Acquisto di beni;2;Altri beni di consumo;2;Carburanti, combustibili e lubrificanti;31/05/2016
225;4;0;110;330;KUWAIT PETROLEUM ITALIA SPA;ZCB1769D6B;ACCONTO Fatt.n. PJ00031573  del 30/04/2016;31/05/2016;385;1;0;1;Spese correnti;3;Acquisto di beni e servizi;1;Acquisto di beni;2;Altri beni di consumo;2;Carburanti, combustibili e lubrificanti;31/05/2016
226;1;0;38;462,5;KUWAIT PETROLEUM ITALIA SPA; ;SALDO Fatt.n. PJ00023086  del 31/01/2016;31/05/2016;2290;0;0;1;Spese correnti;3;Acquisto di beni e servizi;1;Acquisto di beni;2;Altri beni di consumo;999;Altri beni e materiali di consumo n.a.c.;31/05/2016
226;2;0;71;462,5;KUWAIT PETROLEUM ITALIA SPA; ;SALDO Fatt.n. PJ00025581  del 29/02/2016;31/05/2016;2290;0;0;1;Spese correnti;3;Acquisto di beni e servizi;1;Acquisto di beni;2;Altri beni di consumo;999;Altri beni e materiali di consumo n.a.c.;31/05/2016
226;3;0;139,5;462,5;KUWAIT PETROLEUM ITALIA SPA; ;SALDO Fatt.n. PJ00028486  del 31/03/2016;31/05/2016;2290;0;0;1;Spese correnti;3;Acquisto di beni e servizi;1;Acquisto di beni;2;Altri beni di consumo;999;Altri beni e materiali di consumo n.a.c.;31/05/2016
226;4;0;214;462,5;KUWAIT PETROLEUM ITALIA SPA; ;SALDO Fatt.n. PJ00031573  del 30/04/2016;31/05/2016;2290;0;0;1;Spese correnti;3;Acquisto di beni e servizi;1;Acquisto di beni;2;Altri beni di consumo;999;Altri beni e materiali di consumo n.a.c.;31/05/2016
227;1;0;240;240;LANATI ELISABETTA - ECONOMO; ;RENDICONTO ECONOMATO IV TRIM.2015;03/06/2016;20;0;72;1;Spese correnti;3;Acquisto di beni e servizi;1;Acquisto di beni;2;Altri beni di consumo;999;Altri beni e materiali di consumo n.a.c.;03/06/2016
228;1;0;153,4;153,4;LANATI ELISABETTA - ECONOMO; ;RENDICONTO ECONOMATO IV TRIM. 2015;03/06/2016;110;1;73;1;Spese correnti;3;Acquisto di beni e servizi;1;Acquisto di beni;2;Altri beni di consumo;999;Altri beni e materiali di consumo n.a.c.;03/06/2016
229;1;0;507,19;507,19;LANATI ELISABETTA - ECONOMO; ;RENDICONTO ECONOMATO IV TRIM. 2015;03/06/2016;387;0;83;1;Spese correnti;3;Acquisto di beni e servizi;1;Acquisto di beni;2;Altri beni di consumo;5;Accessori per uffici e alloggi;03/06/2016
230;1;0;180,75;180,75;LANATI ELISABETTA - ECONOMO; ;RENDICONTO ECONOMATO IV TRIM. 2015;03/06/2016;130;0;77;1;Spese correnti;3;Acquisto di beni e servizi;2;Acquisto di servizi;99;Altri servizi;999;Altri servizi diversi n.a.c.;03/06/2016
231;1;0;437;437;LANATI ELISABETTA - ECONOMO; ;RENDICONTO ECONOMATO IV TRIM. 2015 ( CORSI AGGIORNAMENTO);03/06/2016;120;2;75;1;Spese correnti;3;Acquisto di beni e servizi;2;Acquisto di servizi;4;Acquisto di servizi per formazione e addestramento del personale dell'ente;999;Acquisto di servizi per altre spese per formazione e addestramento n.a.c.;03/06/2016
232;1;0;318,09;318,09;LANATI ELISABETTA - ECONOMO; ;RENDICONTO ECONOMATO IV TRIM. 2015;03/06/2016;200;0;79;1;Spese correnti;3;Acquisto di beni e servizi;1;Acquisto di beni;2;Altri beni di consumo;999;Altri beni e materiali di consumo n.a.c.;03/06/2016
233;1;0;72,75;72,75;LANATI ELISABETTA - ECONOMO; ;RENDICONTO ECONOMATO IV TRIM. 2015 ( SPESE POSTALI);03/06/2016;120;0;22;1;Spese correnti;3;Acquisto di beni e servizi;2;Acquisto di servizi;16;Servizi amministrativi;2;Spese postali;03/06/2016
234;1;0;100;100;LANATI ELISABETTA - ECONOMO; ;RENDICONTO ECONOMATO IV TRIM. 2015;03/06/2016;395;0;135;1;Spese correnti;3;Acquisto di beni e servizi;2;Acquisto di servizi;99;Altri servizi;999;Altri servizi diversi n.a.c.;03/06/2016
235;1;0;68,93;68,93;ENEL SERVIZIO ELETTRICO SPA; ;SALDO Fatt.n. 188550270101215  del 09/05/2016 - PROVV.N. 49 DEL 30.05.2016;06/06/2016;660;0;0;1;Spese correnti;3;Acquisto di beni e servizi;2;Acquisto di servizi;99;Altri servizi;999;Altri servizi diversi n.a.c.;06/06/2016
237;1;0;11.419,20;11.419,20;BRONI-STRADELLA Spa;Z3EC39B86;SALDO Fatt.n. 484/E  del 11/11/2015;06/06/2016;7846;0;119;2;Spese in conto capitale;5;Altre spese in conto capitale;99;Altre spese in conto capitale n.a.c.;99;Altre spese in conto capitale n.a.c.;999;Altre spese in conto capitale n.a.c.;06/06/2016
238;1;0;9.592,13;9.592,13;BRONI-STRADELLA Spa;Z3EC39B86;SALDO Fatt.n. 108/E  del 18/03/2016;06/06/2016;7846;0;0;2;Spese in conto capitale;5;Altre spese in conto capitale;99;Altre spese in conto capitale n.a.c.;99;Altre spese in conto capitale n.a.c.;999;Altre spese in conto capitale n.a.c.;06/06/2016
240;1;0;45,59;45,59;omissis; ;CONTRIBUTO STRAORDINARIO MEDIANTE ACQUISTO GENERI PRIMA NECESSITA';13/06/2016;3410;0;105;1;Spese correnti;4;Trasferimenti correnti;2;Trasferimenti correnti a Famiglie;2;Interventi assistenziali;999;Altri assegni e sussidi assistenziali;13/06/2016
241;1;0;147,6;147,6;POSTE ITALIANE SPA; ;SPESE POSTALI - RIC. N. 2 DEL 07.06.2016;13/06/2016;120;0;0;1;Spese correnti;3;Acquisto di beni e servizi;2;Acquisto di servizi;16;Servizi amministrativi;2;Spese postali;13/06/2016
259;1;0;23,77;23,77;TELECOM ITALIA SPA; ;SALDO Fatt.n. 8B00135000  del 05/02/2016;27/06/2016;660;0;0;1;Spese correnti;3;Acquisto di beni e servizi;2;Acquisto di servizi;99;Altri servizi;999;Altri servizi diversi n.a.c.;27/06/2016
261;1;0;2.356,07;2.356,07;CASSA DD.PP.; ;CAUSALE: CDP00800167140603630062016;27/06/2016;2860;0;0;1;Spese correnti;7;Interessi passivi;5;Interessi su Mutui e altri finanziamenti a medio lungo termine;5;Interessi passivi su mutui e altri finanziamenti a medio lungo termine ad altri soggetti;999;Interessi passivi su mutui e altri finanziamenti a medio lungo termine ad altri soggetti;27/06/2016
262;1;0;537,47;537,47;C.M.E. MARMI E GRANITI;35487297CE;SALDO Fatt.n. 12/PA  del 26/04/2016 COTTIMO FIDUCIARIO;27/06/2016;3470;1;0;1;Spese correnti;3;Acquisto di beni e servizi;2;Acquisto di servizi;99;Altri servizi;999;Altri servizi diversi n.a.c.;27/06/2016
263;1;0;956,8;956,8;QUI GROUP SPA;Z641939E33;SALDO Fatt.n. 16-202806  del 16/05/2016 ACQUISTO BUONI PASTO;27/06/2016;1570;0;0;1;Spese correnti;3;Acquisto di beni e servizi;1;Acquisto di beni;2;Altri beni di consumo;2;Carburanti, combustibili e lubrificanti;27/06/2016
264;1;0;366,66;366,66;HALLEY INFORMATICA SRL;Z5812FD1D5;SALDO Fatt.n. 6064/8/10  del 23/05/2016 ASSISTENZA SISITEMISTICA ANNO 2016 SU 5 PC Determina n. 13    del 30/01/2015;27/06/2016;390;1;0;1;Spese correnti;3;Acquisto di beni e servizi;2;Acquisto di servizi;9;Manutenzione ordinaria e riparazioni;6;Manutenzione ordinaria e riparazioni di macchine per ufficio;27/06/2016
265;1;0;1,97;63,14;PAVIA ACQUE S.C.A.R.L.; ;SALDO Fatt.n. 1350020161500101100  del 24/05/2016 B/Bollettazione;27/06/2016;660;0;0;1;Spese correnti;3;Acquisto di beni e servizi;2;Acquisto di servizi;99;Altri servizi;999;Altri servizi diversi n.a.c.;27/06/2016
265;2;0;1,97;63,14;PAVIA ACQUE S.C.A.R.L.; ;SALDO Fatt.n. 1350020161500101300  del 24/05/2016 B/Bollettazione;27/06/2016;660;0;0;1;Spese correnti;3;Acquisto di beni e servizi;2;Acquisto di servizi;99;Altri servizi;999;Altri servizi diversi n.a.c.;27/06/2016
265;3;0;3,16;63,14;PAVIA ACQUE S.C.A.R.L.; ;SALDO Fatt.n. 1350020161500101200  del 24/05/2016 B/Bollettazione;27/06/2016;660;0;0;1;Spese correnti;3;Acquisto di beni e servizi;2;Acquisto di servizi;99;Altri servizi;999;Altri servizi diversi n.a.c.;27/06/2016
265;4;0;5,56;63,14;PAVIA ACQUE S.C.A.R.L.; ;SALDO Fatt.n. 1350020161500100900  del 24/05/2016 B/Bollettazione;27/06/2016;660;0;0;1;Spese correnti;3;Acquisto di beni e servizi;2;Acquisto di servizi;99;Altri servizi;999;Altri servizi diversi n.a.c.;27/06/2016
265;5;0;7,36;63,14;PAVIA ACQUE S.C.A.R.L.; ;SALDO Fatt.n. 1350020161500100800  del 24/05/2016 B/Bollettazione;27/06/2016;660;0;0;1;Spese correnti;3;Acquisto di beni e servizi;2;Acquisto di servizi;99;Altri servizi;999;Altri servizi diversi n.a.c.;27/06/2016
265;6;0;7,96;63,14;PAVIA ACQUE S.C.A.R.L.; ;SALDO Fatt.n. 1350020161500100600  del 24/05/2016 B/Bollettazione via Falcone;27/06/2016;660;0;0;1;Spese correnti;3;Acquisto di beni e servizi;2;Acquisto di servizi;99;Altri servizi;999;Altri servizi diversi n.a.c.;27/06/2016
265;7;0;9,87;63,14;PAVIA ACQUE S.C.A.R.L.; ;SALDO Fatt.n. 1350020161500100500  del 24/05/2016 B/Bollettazione;27/06/2016;660;0;0;1;Spese correnti;3;Acquisto di beni e servizi;2;Acquisto di servizi;99;Altri servizi;999;Altri servizi diversi n.a.c.;27/06/2016
265;8;0;10,33;63,14;PAVIA ACQUE S.C.A.R.L.; ;SALDO Fatt.n. 1350020161500101000  del 24/05/2016 B/Bollettazione;27/06/2016;660;0;0;1;Spese correnti;3;Acquisto di beni e servizi;2;Acquisto di servizi;99;Altri servizi;999;Altri servizi diversi n.a.c.;27/06/2016
265;9;0;14,96;63,14;PAVIA ACQUE S.C.A.R.L.; ;SALDO Fatt.n. 1350020161500100400  del 24/05/2016 B/Bollettazione;27/06/2016;660;0;0;1;Spese correnti;3;Acquisto di beni e servizi;2;Acquisto di servizi;99;Altri servizi;999;Altri servizi diversi n.a.c.;27/06/2016
266;1;0;16,46;16,46;PAVIA ACQUE S.C.A.R.L.; ;SALDO Fatt.n. 1350020161500101400  del 24/05/2016 B/Bollettazione;27/06/2016;2840;0;0;1;Spese correnti;3;Acquisto di beni e servizi;2;Acquisto di servizi;5;Utenze e canoni;5;Acqua;27/06/2016
267;1;0;49,25;49,25;PAVIA ACQUE S.C.A.R.L.; ;SALDO Fatt.n. 1350020161500100300  del 24/05/2016 B/Bollettazione cimitero Albaredo;27/06/2016;3471;0;0;1;Spese correnti;3;Acquisto di beni e servizi;2;Acquisto di servizi;5;Utenze e canoni;5;Acqua;27/06/2016
268;1;0;1.748,00;1.748,00;CITTA' DI STRADELLA; ;Centro DIURNO DISABILI APRILE-MAGGIO 2016 N. 2 UTENTI;27/06/2016;3400;1;3;1;Spese correnti;4;Trasferimenti correnti;1;Trasferimenti correnti a Amministrazioni Pubbliche;2;Trasferimenti correnti a Amministrazioni Locali;3;Trasferimenti correnti a Comuni;27/06/2016
269;1;0;1.437,68;1.437,68;MARTA S.C.R.L.; ;SALDO Fatt.n. 356/EL  del 31/03/2016 Fatture clienti PA elettronica;27/06/2016;1582;0;10;1;Spese correnti;3;Acquisto di beni e servizi;2;Acquisto di servizi;99;Altri servizi;999;Altri servizi diversi n.a.c.;27/06/2016
270;1;0;4.069,83;4.069,83;OFFICINA ELETTRODIESEL DI GHIA ROMANO;ZEF18F825D;SALDO Fatt.n. 1/P  del 27/05/2016 Fattura;27/06/2016;1581;0;0;1;Spese correnti;3;Acquisto di beni e servizi;2;Acquisto di servizi;9;Manutenzione ordinaria e riparazioni;1;Manutenzione ordinaria e riparazioni di mezzi di trasporto ad uso civile, di sicurezza e ordine pubblico;27/06/2016
276;1;0;41;41;COMUNE DI BRONI; ;V BANDO DISTRETTO COMMERCIO - QUOTA CELIT;27/06/2016;3510;0;0;1;Spese correnti;4;Trasferimenti correnti;1;Trasferimenti correnti a Amministrazioni Pubbliche;2;Trasferimenti correnti a Amministrazioni Locali;3;Trasferimenti correnti a Comuni;27/06/2016
277;1;0;86,58;86,58;MONTE ATTILIO; ;RIMBORSO SPESE VIAGGIO DEL 05.05.2016 ( 1/55 BENZINA + PEDAGGIO AUTOSTRADALE);28/06/2016;31;0;0;1;Spese correnti;3;Acquisto di beni e servizi;2;Acquisto di servizi;1;Organi e incarichi istituzionali dell'amministrazione;2;Organi istituzionali dell'amministrazione - Rimborsi;28/06/2016
278;1;0;1.793,02;1.793,02;TOSI MARCO;Z0815CB8DB;SALDO Fatt.n. FATTPA 2_16  del 21/06/2016;28/06/2016;8100;0;38;2;Spese in conto capitale;5;Altre spese in conto capitale;99;Altre spese in conto capitale n.a.c.;99;Altre spese in conto capitale n.a.c.;999;Altre spese in conto capitale n.a.c.;28/06/2016
279;1;0;25.000,00;25.000,00;BREGA CARLO MARCO;ZDA15CB897;ACCONTO Fatt.n. 1/16-PA  del 24/06/2016 INTERVENTO SU PORTA ALBERICIA;28/06/2016;8100;0;150;2;Spese in conto capitale;5;Altre spese in conto capitale;99;Altre spese in conto capitale n.a.c.;99;Altre spese in conto capitale n.a.c.;999;Altre spese in conto capitale n.a.c.;28/06/2016
280;1;0;2.658,57;2.658,57;BREGA CARLO MARCO;ZDA15CB897;SALDO Fatt.n. 1/16-PA  del 24/06/2016 INTERVENTO SU PORTA ALBERICIA;28/06/2016;8100;0;127;2;Spese in conto capitale;5;Altre spese in conto capitale;99;Altre spese in conto capitale n.a.c.;99;Altre spese in conto capitale n.a.c.;999;Altre spese in conto capitale n.a.c.;28/06/2016
281;1;0;170,1;170,1;omissis; ;omissis;02/07/2016;3130;1;112;1;Spese correnti;4;Trasferimenti correnti;2;Trasferimenti correnti a Famiglie;5;Altri trasferimenti a famiglie;999;Altri trasferimenti a famiglie n.a.c.;02/07/2016
282;1;0;65,9;65,9;omissis; ;omissis;02/07/2016;3130;1;112;1;Spese correnti;4;Trasferimenti correnti;2;Trasferimenti correnti a Famiglie;5;Altri trasferimenti a famiglie;999;Altri trasferimenti a famiglie n.a.c.;02/07/2016
283;1;0;382,24;382,24;omissis; ;omissis;02/07/2016;3130;1;0;1;Spese correnti;4;Trasferimenti correnti;2;Trasferimenti correnti a Famiglie;5;Altri trasferimenti a famiglie;999;Altri trasferimenti a famiglie n.a.c.;02/07/2016
284;1;0;221;221;COMUNE DI CAMPOSPINOSO; ;omissis;02/07/2016;3130;1;0;1;Spese correnti;4;Trasferimenti correnti;2;Trasferimenti correnti a Famiglie;5;Altri trasferimenti a famiglie;999;Altri trasferimenti a famiglie n.a.c.;02/07/2016
285;1;0;48,92;48,92;omissis; ;Contributo straordinario mediante acquisto generi prima necessit;09/07/2016;3410;0;105;1;Spese correnti;4;Trasferimenti correnti;2;Trasferimenti correnti a Famiglie;2;Interventi assistenziali;999;Altri assegni e sussidi assistenziali;09/07/2016
286;1;0;53,14;53,14;ENEL SERVIZIO ELETTRICO SPA; ;SALDO Fatt.n. 188550270101216  del 09/06/2016 - PROVV.N. 56 DEL 29.06.2016;11/07/2016;661;0;0;1;Spese correnti;3;Acquisto di beni e servizi;2;Acquisto di servizi;5;Utenze e canoni;4;Energia elettrica;11/07/2016
288;1;0;408,7;408,7;SIAM di Bonetti Giancarlo;ZB71975222;SALDO Fatt.n. 14 PA  del 14/06/2016;11/07/2016;390;1;0;1;Spese correnti;3;Acquisto di beni e servizi;2;Acquisto di servizi;9;Manutenzione ordinaria e riparazioni;6;Manutenzione ordinaria e riparazioni di macchine per ufficio;11/07/2016
289;1;0;679,25;679,25;GIORGIO DELLA VALLE SRL;ZDA162765;SALDO Fatt.n. 191/16  del 31/05/2016 Nostro autista per guida Vs. scuolabus a.s. 2015 / 2016  MESE DI MAGGIO 2016;11/07/2016;1584;0;7;1;Spese correnti;3;Acquisto di beni e servizi;2;Acquisto di servizi;99;Altri servizi;999;Altri servizi diversi n.a.c.;11/07/2016
290;1;0;9.412,93;9.412,93;BRONI-STRADELLA Spa;Z0619425A9;SALDO Fatt.n. 262/E  del 31/05/2016;11/07/2016;2940;0;13;1;Spese correnti;3;Acquisto di beni e servizi;2;Acquisto di servizi;99;Altri servizi;999;Altri servizi diversi n.a.c.;11/07/2016
291;1;0;744,2;744,2;SOLUZIONE SRL;Z401A1912B;SALDO Fatt.n. 2.364  del 16/06/2016 ABBONAMENTO ENTI ON LINE;11/07/2016;110;2;0;1;Spese correnti;3;Acquisto di beni e servizi;1;Acquisto di beni;2;Altri beni di consumo;1;Carta, cancelleria e stampati;11/07/2016
292;1;0;878;878;KUWAIT PETROLEUM ITALIA SPA; ;ACCONTO Fatt.n. PJ00034980  del 31/05/2016;11/07/2016;1570;0;0;1;Spese correnti;3;Acquisto di beni e servizi;1;Acquisto di beni;2;Altri beni di consumo;2;Carburanti, combustibili e lubrificanti;11/07/2016
293;1;0;100;100;KUWAIT PETROLEUM ITALIA SPA; ;ACCONTO Fatt.n. PJ00034980  del 31/05/2016;11/07/2016;385;1;0;1;Spese correnti;3;Acquisto di beni e servizi;1;Acquisto di beni;2;Altri beni di consumo;2;Carburanti, combustibili e lubrificanti;11/07/2016
294;1;0;157;157;KUWAIT PETROLEUM ITALIA SPA;ZCB1769D6B;SALDO Fatt.n. PJ00034980  del 31/05/2016;11/07/2016;2290;0;0;1;Spese correnti;3;Acquisto di beni e servizi;1;Acquisto di beni;2;Altri beni di consumo;999;Altri beni e materiali di consumo n.a.c.;11/07/2016
295;1;0;590,48;590,48;COOPERATIVA TICINO;6057911A4B;SALDO Fatt.n. FATTPA 47_16  del 06/06/2016 PULIZIA MAGGIO 2016;11/07/2016;390;0;5;1;Spese correnti;3;Acquisto di beni e servizi;2;Acquisto di servizi;13;Servizi ausiliari per il funzionamento dell'ente;2;Servizi di pulizia e lavanderia;11/07/2016
313;1;0;597,5;597,5;GHIA PIERO AGENTE ALLIANZ SPA; ;ASSICURAZIONE PANDA DV397PB POLIZZA N. 066027646 E 66027647 SCAD. 28.07.2016;08/08/2016;390;1;0;1;Spese correnti;3;Acquisto di beni e servizi;2;Acquisto di servizi;9;Manutenzione ordinaria e riparazioni;1;Manutenzione ordinaria e riparazioni di mezzi di trasporto ad uso civile, di sicurezza e ordine pubblico;08/08/2016
314;1;0;23,91;237,02;TELECOM ITALIA SPA;54663373FE;SALDO Fatt.n. 8B00362905  del 06/04/2016 AMBULATORIO ALBAREDO - PROVV.N. 62 DEL 14.07.2016;08/08/2016;660;0;0;1;Spese correnti;3;Acquisto di beni e servizi;2;Acquisto di servizi;99;Altri servizi;999;Altri servizi diversi n.a.c.;08/08/2016
314;2;0;24,03;237,02;TELECOM ITALIA SPA;54663373FE;SALDO Fatt.n. 8B00364547  del 06/04/2016 - PROVV.N. 64 DEL 14.07.2016;08/08/2016;660;0;0;1;Spese correnti;3;Acquisto di beni e servizi;2;Acquisto di servizi;99;Altri servizi;999;Altri servizi diversi n.a.c.;08/08/2016
314;3;0;30,82;237,02;TELECOM ITALIA SPA;54663373FE;SALDO Fatt.n. 8B00367500  del 06/04/2016 - PROVV.N. 63 DEL 14.07.2016;08/08/2016;660;0;0;1;Spese correnti;3;Acquisto di beni e servizi;2;Acquisto di servizi;99;Altri servizi;999;Altri servizi diversi n.a.c.;08/08/2016
314;4;0;71,48;237,02;TELECOM ITALIA SPA;54663373FE;SALDO Fatt.n. 8B00363643  del 06/04/2016 FAX CAMPOSPINOSO - PROVV.N. 65 DEL 14.07.2016;08/08/2016;660;0;0;1;Spese correnti;3;Acquisto di beni e servizi;2;Acquisto di servizi;99;Altri servizi;999;Altri servizi diversi n.a.c.;08/08/2016
314;5;0;86,78;237,02;TELECOM ITALIA SPA;54663373FE;SALDO Fatt.n. 8B00364140  del 06/04/2016 UFFICI ALBAREDO - PROVV.N. 61 DEL 14.07.2016;08/08/2016;660;0;0;1;Spese correnti;3;Acquisto di beni e servizi;2;Acquisto di servizi;99;Altri servizi;999;Altri servizi diversi n.a.c.;08/08/2016
316;1;0;254,62;254,62;MONTE ATTILIO; ;RIMBORSO SPESE DI VIAGGIO DEL 30.07.2016;02/09/2016;31;0;0;1;Spese correnti;3;Acquisto di beni e servizi;2;Acquisto di servizi;1;Organi e incarichi istituzionali dell'amministrazione;2;Organi istituzionali dell'amministrazione - Rimborsi;02/09/2016
330;1;0;214,2;214,2;POSTE ITALIANE SPA; ;ACQUISTO FRANCOBOLLI - RIC. 3 DEL 23.08.2016;06/09/2016;120;0;0;1;Spese correnti;3;Acquisto di beni e servizi;2;Acquisto di servizi;16;Servizi amministrativi;2;Spese postali;06/09/2016
331;1;0;45,18;45,18;omissis; ;CONTRIBUTO STRAORDINARIO MEDIANTE ACQUISTO GENERI PRIMA NECESSITA';06/09/2016;3410;0;105;1;Spese correnti;4;Trasferimenti correnti;2;Trasferimenti correnti a Famiglie;2;Interventi assistenziali;999;Altri assegni e sussidi assistenziali;06/09/2016
332;1;0;46,01;46,01;omissis; ;CONTRIBUTO ECONOMICO STRAORDINARIO;07/09/2016;3410;0;105;1;Spese correnti;4;Trasferimenti correnti;2;Trasferimenti correnti a Famiglie;2;Interventi assistenziali;999;Altri assegni e sussidi assistenziali;07/09/2016
333;1;0;738;738;MONTAGNA ASSICURAZIONI; ;ASSICURAZIONE PIAGGIO PORTER POLIZZA N. 166.13.81570 SCAD. 06.09.2016;07/09/2016;390;1;0;1;Spese correnti;3;Acquisto di beni e servizi;2;Acquisto di servizi;9;Manutenzione ordinaria e riparazioni;6;Manutenzione ordinaria e riparazioni di macchine per ufficio;07/09/2016
334;1;0;1.552,50;1.552,50;MONTE ATTILIO; ;COMPENSO SEMESTRALE ANNO 2016 REVISORE - Netto Euro 1.176,32;07/09/2016;30;0;0;1;Spese correnti;3;Acquisto di beni e servizi;2;Acquisto di servizi;1;Organi e incarichi istituzionali dell'amministrazione;8;Compensi agli organi istituzionali di revisione, di controllo ed altri incarichi istituzionali dell'amministrazione;07/09/2016
335;1;0;59,12;59,12;ENEL SERVIZIO ELETTRICO SPA; ;SALDO Fatt.n. 188550270101217  del 15/07/2016 - PROVV.N. 69 DEL 04.08.2016;09/09/2016;660;0;0;1;Spese correnti;3;Acquisto di beni e servizi;2;Acquisto di servizi;99;Altri servizi;999;Altri servizi diversi n.a.c.;09/09/2016
338;1;0;381,7;381,7;BANCA ITB; ;ACQUISTO VOUCHER LAVORO INPS + COMMISSIONI ( 1,70);12/09/2016;1584;0;0;1;Spese correnti;3;Acquisto di beni e servizi;2;Acquisto di servizi;99;Altri servizi;999;Altri servizi diversi n.a.c.;12/09/2016
339;1;0;23,85;23,85;TELECOM ITALIA SPA; ;SALDO Fatt.n. 8B00583856  del 07/06/2016;12/09/2016;660;0;0;1;Spese correnti;3;Acquisto di beni e servizi;2;Acquisto di servizi;99;Altri servizi;999;Altri servizi diversi n.a.c.;12/09/2016
340;1;0;145;145;UNIPOL SAI ASSICURAZIONI; ;RIMBORSO FRANCHIGIA SINISTRO 8101/16/0284003 DEL 09.03.2016 SU POLIZZA N. 58902/065/761665247;12/09/2016;390;1;0;1;Spese correnti;3;Acquisto di beni e servizi;2;Acquisto di servizi;9;Manutenzione ordinaria e riparazioni;6;Manutenzione ordinaria e riparazioni di macchine per ufficio;12/09/2016
341;1;0;21;333;LIBARNA GAS SPA; ;SALDO Fatt.n. 100338  del 27/06/2016 METANO;12/09/2016;660;0;0;1;Spese correnti;3;Acquisto di beni e servizi;2;Acquisto di servizi;99;Altri servizi;999;Altri servizi diversi n.a.c.;12/09/2016
341;2;0;21;333;LIBARNA GAS SPA; ;SALDO Fatt.n. 100341  del 27/06/2016 metano;12/09/2016;660;0;0;1;Spese correnti;3;Acquisto di beni e servizi;2;Acquisto di servizi;99;Altri servizi;999;Altri servizi diversi n.a.c.;12/09/2016
341;3;0;27;333;LIBARNA GAS SPA; ;SALDO Fatt.n. 100340  del 27/06/2016;12/09/2016;660;0;0;1;Spese correnti;3;Acquisto di beni e servizi;2;Acquisto di servizi;99;Altri servizi;999;Altri servizi diversi n.a.c.;12/09/2016
341;4;0;43;333;LIBARNA GAS SPA; ;SALDO Fatt.n. 100342  del 27/06/2016 METANO;12/09/2016;660;0;0;1;Spese correnti;3;Acquisto di beni e servizi;2;Acquisto di servizi;99;Altri servizi;999;Altri servizi diversi n.a.c.;12/09/2016
341;5;0;49;333;LIBARNA GAS SPA; ;SALDO Fatt.n. 100343  del 27/06/2016;12/09/2016;660;0;0;1;Spese correnti;3;Acquisto di beni e servizi;2;Acquisto di servizi;99;Altri servizi;999;Altri servizi diversi n.a.c.;12/09/2016
341;6;0;72;333;LIBARNA GAS SPA; ;SALDO Fatt.n. 100339  del 27/06/2016 METANO;12/09/2016;660;0;0;1;Spese correnti;3;Acquisto di beni e servizi;2;Acquisto di servizi;99;Altri servizi;999;Altri servizi diversi n.a.c.;12/09/2016
341;7;0;100;333;LIBARNA GAS SPA; ;SALDO Fatt.n. 100344  del 27/06/2016 METANO;12/09/2016;660;0;0;1;Spese correnti;3;Acquisto di beni e servizi;2;Acquisto di servizi;99;Altri servizi;999;Altri servizi diversi n.a.c.;12/09/2016
342;1;0;145,42;145,42;ENEL SERVIZIO ELETTRICO SPA; ;SALDO Fatt.n. 188550080108518  del 15/07/2016;12/09/2016;2390;0;0;1;Spese correnti;3;Acquisto di beni e servizi;2;Acquisto di servizi;5;Utenze e canoni;4;Energia elettrica;12/09/2016
343;1;0;488;488;ORLANDI GIOVANNI; ;SALDO Fatt.n. 00178  del 24/06/2016 SCUOLABUS;12/09/2016;1584;0;0;1;Spese correnti;3;Acquisto di beni e servizi;2;Acquisto di servizi;99;Altri servizi;999;Altri servizi diversi n.a.c.;12/09/2016
344;1;0;964,63;964,63;MAZZOCCHI GOMME Snc;Z7E1961F92;SALDO Fatt.n. E3  del 30/06/2016 acquisto pneumatici nuovi scuolabus;12/09/2016;1570;0;0;1;Spese correnti;3;Acquisto di beni e servizi;1;Acquisto di beni;2;Altri beni di consumo;2;Carburanti, combustibili e lubrificanti;12/09/2016
345;1;0;590,48;1.771,44;COOPERATIVA TICINO;6057911A4B;SALDO Fatt.n. FATTPA 55_16  del 01/07/2016 GIUGNO;13/09/2016;390;0;5;1;Spese correnti;3;Acquisto di beni e servizi;2;Acquisto di servizi;13;Servizi ausiliari per il funzionamento dell'ente;2;Servizi di pulizia e lavanderia;13/09/2016
345;2;0;590,48;1.771,44;COOPERATIVA TICINO;6057911A4B;SALDO Fatt.n. FATTPA 67_16  del 01/08/2016 luglio;13/09/2016;390;0;5;1;Spese correnti;3;Acquisto di beni e servizi;2;Acquisto di servizi;13;Servizi ausiliari per il funzionamento dell'ente;2;Servizi di pulizia e lavanderia;13/09/2016
345;3;0;590,48;1.771,44;COOPERATIVA TICINO;6057911A4B;SALDO Fatt.n. FATTPA 75_16  del 01/09/2016 agosto;13/09/2016;390;0;5;1;Spese correnti;3;Acquisto di beni e servizi;2;Acquisto di servizi;13;Servizi ausiliari per il funzionamento dell'ente;2;Servizi di pulizia e lavanderia;13/09/2016
346;1;0;305;305;"Delfino &amp; Partners spa";ZDC1A60652;SALDO Fatt.n. 1172/00  del 06/07/2016 PARERE;13/09/2016;390;1;0;1;Spese correnti;3;Acquisto di beni e servizi;2;Acquisto di servizi;9;Manutenzione ordinaria e riparazioni;6;Manutenzione ordinaria e riparazioni di macchine per ufficio;13/09/2016
347;1;0;9.412,93;18.825,86;BRONI-STRADELLA Spa;Z0619425A9;SALDO Fatt.n. 318/E  del 30/06/2016;13/09/2016;2940;0;0;1;Spese correnti;3;Acquisto di beni e servizi;2;Acquisto di servizi;99;Altri servizi;999;Altri servizi diversi n.a.c.;13/09/2016
347;2;0;9.412,93;18.825,86;BRONI-STRADELLA Spa;Z0619425A9;SALDO Fatt.n. 383/E  del 03/08/2016 RIFIUTI LUGLIO;13/09/2016;2940;0;0;1;Spese correnti;3;Acquisto di beni e servizi;2;Acquisto di servizi;99;Altri servizi;999;Altri servizi diversi n.a.c.;13/09/2016
348;1;0;1.889,25;1.889,25;BRONI-STRADELLA Spa;Z0619425A9;SALDO Fatt.n. 377/E  del 13/07/2016 spazzamento strade;13/09/2016;2930;0;0;1;Spese correnti;3;Acquisto di beni e servizi;2;Acquisto di servizi;99;Altri servizi;999;Altri servizi diversi n.a.c.;13/09/2016
349;1;0;880;880;ANFFAS ONLUS BRONI STRADELLA;Z3B1882A55;SALDO Fatt.n. 0000071  del 07/07/2016 trasporto cdd;13/09/2016;3400;1;0;1;Spese correnti;4;Trasferimenti correnti;1;Trasferimenti correnti a Amministrazioni Pubbliche;2;Trasferimenti correnti a Amministrazioni Locali;3;Trasferimenti correnti a Comuni;13/09/2016
350;1;0;741,03;741,03;ECOTEC S.R.L.; ;SALDO Fatt.n. 190  del 08/07/2016 Ft Split Payment ex art.17-ter DPR 633/72;13/09/2016;390;1;0;1;Spese correnti;3;Acquisto di beni e servizi;2;Acquisto di servizi;9;Manutenzione ordinaria e riparazioni;6;Manutenzione ordinaria e riparazioni di macchine per ufficio;13/09/2016
351;1;0;2.512,22;2.512,22;MILANI RAG. GIANPAOLO; ;SALDO Fatt.n. 1/FE  del 01/07/2016 inventario;13/09/2016;390;1;0;1;Spese correnti;3;Acquisto di beni e servizi;2;Acquisto di servizi;9;Manutenzione ordinaria e riparazioni;6;Manutenzione ordinaria e riparazioni di macchine per ufficio;13/09/2016
352;1;0;4.940,95;4.940,95;IL MAGGIOLINO SOC.COOP. ONLUS; ;SALDO Fatt.n. FATTPA 1_16  del 30/07/2016;13/09/2016;3110;0;0;1;Spese correnti;3;Acquisto di beni e servizi;2;Acquisto di servizi;99;Altri servizi;999;Altri servizi diversi n.a.c.;13/09/2016
353;1;0;3.352,00;3.352,00;IL MAGGIOLINO SOC.COOP. ONLUS; ;SALDO Fatt.n. FATTPA 2_16  del 30/07/2016 CENTRO ESTIVO;13/09/2016;3110;0;0;1;Spese correnti;3;Acquisto di beni e servizi;2;Acquisto di servizi;99;Altri servizi;999;Altri servizi diversi n.a.c.;13/09/2016
359;1;0;132,01;132,01;REGIONE LOMBARDIA; ;VERS. IRAP SU COMPENSO REVISORE;22/09/2016;30;0;0;1;Spese correnti;3;Acquisto di beni e servizi;2;Acquisto di servizi;1;Organi e incarichi istituzionali dell'amministrazione;8;Compensi agli organi istituzionali di revisione, di controllo ed altri incarichi istituzionali dell'amministrazione;22/09/2016
368;1;0;171,7;171,7;BANCA ITB; ;ACQUISTO VOUCHER LAVORO PERIODO 26/09/2016 - 29.09.2016 + COMMISSIONI;26/09/2016;1584;0;0;1;Spese correnti;3;Acquisto di beni e servizi;2;Acquisto di servizi;99;Altri servizi;999;Altri servizi diversi n.a.c.;26/09/2016
369;1;0;122;122;ENEL DISTRIBUZIONE SPA;6781150DFE;SALDO Fatt.n. 0000916900006324  del 29/09/2016 anticipo;05/10/2016;480;0;0;2;Spese in conto capitale;5;Altre spese in conto capitale;99;Altre spese in conto capitale n.a.c.;99;Altre spese in conto capitale n.a.c.;999;Altre spese in conto capitale n.a.c.;05/10/2016
370;1;0;646,6;646,6;HALLEY INFORMATICA SRL;ZC41A19173;SALDO Fatt.n. 8385/8/10  del 19/07/2016 ONSITE 2 ANNI STAMP. GARANZIA FULMINI STAMP. INST/CONF STAMPANTE TRASFERTA RIFERIMENTO FOGLIO INTERVENTO N.197742 DEL 07.07.16 Determina n. 26 del 31.05.16 Referente: dr.ssa Elisabetta Lanati;05/10/2016;386;0;0;1;Spese correnti;3;Acquisto di beni e servizi;1;Acquisto di beni;2;Altri beni di consumo;5;Accessori per uffici e alloggi;05/10/2016
371;1;0;256,2;2.549,80;HALLEY INFORMATICA SRL;ZC41A19173;SALDO Fatt.n. 8170/8/10  del 19/07/2016 ADDESTRAMENTO RIFERIMENTO FOGLIO INTERVENTO N.197680 DEL 05.07.16 RIFERITO ALL'ANAGRAFE Determina n. 26 del 31.05.16 Referente: dr.ssa Elisabetta Lanati;05/10/2016;390;1;0;1;Spese correnti;3;Acquisto di beni e servizi;2;Acquisto di servizi;9;Manutenzione ordinaria e riparazioni;6;Manutenzione ordinaria e riparazioni di macchine per ufficio;05/10/2016
371;2;0;1.098,00;2.549,80;HALLEY INFORMATICA SRL;ZC41A19173;SALDO Fatt.n. 8396/8/10  del 19/07/2016 INSTALL.BLACK BOX PLUS INSTALL.SERVIZIO CED TRASFERTA RIFERIMENTO FOGLIO INTERVENTO N.197685 DEL 05.07.16 Determina n. 26 del 31.05.16 Referente: dr.ssa Elisabetta Lanati;05/10/2016;390;1;0;1;Spese correnti;3;Acquisto di beni e servizi;2;Acquisto di servizi;9;Manutenzione ordinaria e riparazioni;6;Manutenzione ordinaria e riparazioni di macchine per ufficio;05/10/2016
371;3;0;1.195,60;2.549,80;HALLEY INFORMATICA SRL;ZC41A19173;SALDO Fatt.n. 6853/8/10  del 13/06/2016 D.D.T. N.981/1 DEL 10.06.16 STAMPANTE FUJITSU DL7400 Determina n. 26 del 31.05.16 Referente: dr.ssa Elisabetta Lanati;05/10/2016;390;1;0;1;Spese correnti;3;Acquisto di beni e servizi;2;Acquisto di servizi;9;Manutenzione ordinaria e riparazioni;6;Manutenzione ordinaria e riparazioni di macchine per ufficio;05/10/2016
372;1;0;460;460;COMUNE DI STRADELLA; ;QUOTA DI COFINANZIAMENTO SERVIZIO PUNTO ROSA ANNO 2016 - Delibera ASSEMBLEA UNIONE N. 5 DEL 26.02.2015;05/10/2016;3425;0;0;1;Spese correnti;4;Trasferimenti correnti;1;Trasferimenti correnti a Amministrazioni Pubbliche;2;Trasferimenti correnti a Amministrazioni Locali;3;Trasferimenti correnti a Comuni;05/10/2016
373;1;0;106,29;987,99;C.M.E. MARMI E GRANITI;35487297CE;SALDO Fatt.n. 15/PA  del 15/06/2016 SERVIZI CIMITERIALI;05/10/2016;3470;1;0;1;Spese correnti;3;Acquisto di beni e servizi;2;Acquisto di servizi;99;Altri servizi;999;Altri servizi diversi n.a.c.;05/10/2016
373;2;0;161,85;987,99;C.M.E. MARMI E GRANITI;35487297CE;SALDO Fatt.n. 14/PA  del 04/05/2016 COTTIMO FIDUCIARIO;05/10/2016;3470;1;0;1;Spese correnti;3;Acquisto di beni e servizi;2;Acquisto di servizi;99;Altri servizi;999;Altri servizi diversi n.a.c.;05/10/2016
373;3;0;719,85;987,99;C.M.E. MARMI E GRANITI;35487297CE;SALDO Fatt.n. 18/PA  del 07/07/2016 COTTIMO FIDUCIARIO;05/10/2016;3470;1;0;1;Spese correnti;3;Acquisto di beni e servizi;2;Acquisto di servizi;99;Altri servizi;999;Altri servizi diversi n.a.c.;05/10/2016
374;1;0;9.412,93;9.412,93;BRONI-STRADELLA Spa;Z0619425A9;SALDO Fatt.n. 439/E  del 31/08/2016 rifiuti agosto;05/10/2016;2940;0;0;1;Spese correnti;3;Acquisto di beni e servizi;2;Acquisto di servizi;99;Altri servizi;999;Altri servizi diversi n.a.c.;05/10/2016
375;1;0;19;116;LIBARNA GAS SPA; ;SALDO Fatt.n. 100413  del 26/08/2016 METANO;05/10/2016;660;0;0;1;Spese correnti;3;Acquisto di beni e servizi;2;Acquisto di servizi;99;Altri servizi;999;Altri servizi diversi n.a.c.;05/10/2016
375;2;0;19;116;LIBARNA GAS SPA; ;SALDO Fatt.n. 100412  del 26/08/2016 ,METANO;05/10/2016;660;0;0;1;Spese correnti;3;Acquisto di beni e servizi;2;Acquisto di servizi;99;Altri servizi;999;Altri servizi diversi n.a.c.;05/10/2016
375;3;0;19;116;LIBARNA GAS SPA; ;SALDO Fatt.n. 100410  del 26/08/2016 METANO;05/10/2016;660;0;0;1;Spese correnti;3;Acquisto di beni e servizi;2;Acquisto di servizi;99;Altri servizi;999;Altri servizi diversi n.a.c.;05/10/2016
375;4;0;19;116;LIBARNA GAS SPA; ;SALDO Fatt.n. 100416  del 26/08/2016 METANO;05/10/2016;660;0;0;1;Spese correnti;3;Acquisto di beni e servizi;2;Acquisto di servizi;99;Altri servizi;999;Altri servizi diversi n.a.c.;05/10/2016
375;5;0;20;116;LIBARNA GAS SPA; ;SALDO Fatt.n. 100414  del 26/08/2016 METANO;05/10/2016;660;0;0;1;Spese correnti;3;Acquisto di beni e servizi;2;Acquisto di servizi;99;Altri servizi;999;Altri servizi diversi n.a.c.;05/10/2016
375;6;0;20;116;LIBARNA GAS SPA; ;SALDO Fatt.n. 100411  del 26/08/2016 METANO;05/10/2016;660;0;0;1;Spese correnti;3;Acquisto di beni e servizi;2;Acquisto di servizi;99;Altri servizi;999;Altri servizi diversi n.a.c.;05/10/2016
376;1;0;40;230;KUWAIT PETROLEUM ITALIA SPA;ZCB1769D6B;ACCONTO Fatt.n. PJ00042181  del 31/07/2016;05/10/2016;385;1;0;1;Spese correnti;3;Acquisto di beni e servizi;1;Acquisto di beni;2;Altri beni di consumo;2;Carburanti, combustibili e lubrificanti;05/10/2016
376;2;0;80;230;KUWAIT PETROLEUM ITALIA SPA;ZCB1769D6B;ACCONTO Fatt.n. PJ00045762  del 31/08/2016;05/10/2016;385;1;0;1;Spese correnti;3;Acquisto di beni e servizi;1;Acquisto di beni;2;Altri beni di consumo;2;Carburanti, combustibili e lubrificanti;05/10/2016
376;3;0;110;230;KUWAIT PETROLEUM ITALIA SPA; ;ACCONTO Fatt.n. PJ00038552  del 30/06/2016;05/10/2016;385;1;0;1;Spese correnti;3;Acquisto di beni e servizi;1;Acquisto di beni;2;Altri beni di consumo;2;Carburanti, combustibili e lubrificanti;05/10/2016
377;1;0;93;488,53;KUWAIT PETROLEUM ITALIA SPA; ;SALDO Fatt.n. PJ00045762  del 31/08/2016;05/10/2016;385;1;0;1;Spese correnti;3;Acquisto di beni e servizi;1;Acquisto di beni;2;Altri beni di consumo;999;Altri beni e materiali di consumo n.a.c.;05/10/2016
377;2;0;96,53;488,53;KUWAIT PETROLEUM ITALIA SPA; ;ACCONTO Fatt.n. PJ00038552  del 30/06/2016;05/10/2016;385;1;0;1;Spese correnti;3;Acquisto di beni e servizi;1;Acquisto di beni;2;Altri beni di consumo;999;Altri beni e materiali di consumo n.a.c.;05/10/2016
377;3;0;299;488,53;KUWAIT PETROLEUM ITALIA SPA; ;ACCONTO Fatt.n. PJ00042181  del 31/07/2016;05/10/2016;385;1;0;1;Spese correnti;3;Acquisto di beni e servizi;1;Acquisto di beni;2;Altri beni di consumo;999;Altri beni e materiali di consumo n.a.c.;05/10/2016
378;1;0;568;568;KUWAIT PETROLEUM ITALIA SPA;ZCB1769D6B;SALDO Fatt.n. PJ00038552  del 30/06/2016;05/10/2016;1570;0;0;1;Spese correnti;3;Acquisto di beni e servizi;1;Acquisto di beni;2;Altri beni di consumo;2;Carburanti, combustibili e lubrificanti;05/10/2016
379;1;0;351;351;KUWAIT PETROLEUM ITALIA SPA; ;SALDO Fatt.n. PJ00042181  del 31/07/2016;05/10/2016;3110;0;0;1;Spese correnti;3;Acquisto di beni e servizi;2;Acquisto di servizi;99;Altri servizi;999;Altri servizi diversi n.a.c.;05/10/2016
380;1;0;10.000,00;10.000,00;UNIONE SPORTIVA ARNABOLDI CF.: 93001630180; ;SALDO Fatt.n. FATTPA 1_16  del 31/07/2016;05/10/2016;3110;0;0;1;Spese correnti;3;Acquisto di beni e servizi;2;Acquisto di servizi;99;Altri servizi;999;Altri servizi diversi n.a.c.;05/10/2016
381;1;0;1.510,01;3.092,36;MARTA S.C.R.L.;ZB015CD76E;SALDO Fatt.n. 655/EL  del 30/06/2016 aprile 2016;05/10/2016;1582;0;10;1;Spese correnti;3;Acquisto di beni e servizi;2;Acquisto di servizi;99;Altri servizi;999;Altri servizi diversi n.a.c.;05/10/2016
381;2;0;1.582,35;3.092,36;MARTA S.C.R.L.;ZB015CD76E;SALDO Fatt.n. 656/EL  del 30/06/2016 maggio 2016;05/10/2016;1582;0;10;1;Spese correnti;3;Acquisto di beni e servizi;2;Acquisto di servizi;99;Altri servizi;999;Altri servizi diversi n.a.c.;05/10/2016
382;1;0;23,89;241,98;TELECOM ITALIA SPA;54663373FE;SALDO Fatt.n. 8B00586981  del 07/06/2016 - PROVV.N. 86 DEL 14.09.2016;07/10/2016;660;0;0;1;Spese correnti;3;Acquisto di beni e servizi;2;Acquisto di servizi;99;Altri servizi;999;Altri servizi diversi n.a.c.;07/10/2016
382;2;0;23,9;241,98;TELECOM ITALIA SPA;54663373FE;SALDO Fatt.n. 8B00587068  del 07/06/2016 - PROVV.N .84 DEL 14.09.2016;07/10/2016;660;0;0;1;Spese correnti;3;Acquisto di beni e servizi;2;Acquisto di servizi;99;Altri servizi;999;Altri servizi diversi n.a.c.;07/10/2016
382;3;0;31,98;241,98;TELECOM ITALIA SPA;54663373FE;SALDO Fatt.n. 8B00588982  del 07/06/2016 - PROVV.N. 85 DEL 14.09.2016;07/10/2016;660;0;0;1;Spese correnti;3;Acquisto di beni e servizi;2;Acquisto di servizi;99;Altri servizi;999;Altri servizi diversi n.a.c.;07/10/2016
382;4;0;73,2;241,98;TELECOM ITALIA SPA;54663373FE;SALDO Fatt.n. 8B00588184  del 07/06/2016 - PROVV.N. 87 DEL 14.09.2016;07/10/2016;660;0;0;1;Spese correnti;3;Acquisto di beni e servizi;2;Acquisto di servizi;99;Altri servizi;999;Altri servizi diversi n.a.c.;07/10/2016
382;5;0;89,01;241,98;TELECOM ITALIA SPA;54663373FE;SALDO Fatt.n. 8B00589573  del 07/06/2016 - PROVV.N. 83 DEL 14.09.2016;07/10/2016;660;0;0;1;Spese correnti;3;Acquisto di beni e servizi;2;Acquisto di servizi;99;Altri servizi;999;Altri servizi diversi n.a.c.;07/10/2016
383;1;0;33,95;33,95;ENEL SERVIZIO ELETTRICO SPA; ;SALDO Fatt.n. 188550270101218  del 12/08/2016 via falcone - PROVV.N. 77 DEL 01.09..2016;07/10/2016;660;0;0;1;Spese correnti;3;Acquisto di beni e servizi;2;Acquisto di servizi;99;Altri servizi;999;Altri servizi diversi n.a.c.;07/10/2016
386;1;0;41,7;41,7;BANCA ITB; ;VOUCHER PER PRESTAZIONE OCCASIONALE DEL 07.10.2016 -+ SPESE COMMISSIONI;07/10/2016;1584;0;0;1;Spese correnti;3;Acquisto di beni e servizi;2;Acquisto di servizi;99;Altri servizi;999;Altri servizi diversi n.a.c.;07/10/2016
387;1;0;254,62;254,62;MONTE ATTILIO; ;RIMBORSO SPESE VIAGGIO DEL 08.10.2016;08/10/2016;31;0;0;1;Spese correnti;3;Acquisto di beni e servizi;2;Acquisto di servizi;1;Organi e incarichi istituzionali dell'amministrazione;2;Organi istituzionali dell'amministrazione - Rimborsi;08/10/2016
388;1;0;44,33;44,33;omissis; ;CONTRIBUTO STRAORDINARIO PER ACQUISTO GENERI PRIMA NECESSITA';10/10/2016;3410;0;105;1;Spese correnti;4;Trasferimenti correnti;2;Trasferimenti correnti a Famiglie;2;Interventi assistenziali;999;Altri assegni e sussidi assistenziali;10/10/2016
389;1;0;701,7;701,7;BANCA ITB; ;VOUCHER TRASPORTO OCCASIONALE DAL 17.10.2016 AL 22.10.2016;17/10/2016;1584;0;0;1;Spese correnti;3;Acquisto di beni e servizi;2;Acquisto di servizi;99;Altri servizi;999;Altri servizi diversi n.a.c.;17/10/2016
406;1;0;121,7;121,7;BANCA ITB; ;VOUCHER TRASPORTO DEL 28.10.2016 + COMMISSIONI;28/10/2016;1584;0;0;1;Spese correnti;3;Acquisto di beni e servizi;2;Acquisto di servizi;99;Altri servizi;999;Altri servizi diversi n.a.c.;28/10/2016
407;1;0;1.790,67;1.790,67;BERTON GUIDO  AGENTE UNIPOL SAI; ;POLIZZA SCUOLABUS IVECO BV182SE SCAD. 31.10.2016;07/11/2016;1583;0;0;1;Spese correnti;3;Acquisto di beni e servizi;2;Acquisto di servizi;99;Altri servizi;999;Altri servizi diversi n.a.c.;07/11/2016
408;1;0;82,5;82,5;POSTE ITALIANE SPA; ;ACQUISTO FRANCOBOLLI - RIC.N. 4 DEL 02.11.2016;07/11/2016;120;0;0;1;Spese correnti;3;Acquisto di beni e servizi;2;Acquisto di servizi;16;Servizi amministrativi;2;Spese postali;07/11/2016
409;1;0;46,35;46,35;ENEL SERVIZIO ELETTRICO SPA; ;SALDO Fatt.n. 188550270101219  del 14/09/2016 VIA FALCONE - PROVV.N. 92 DEL 04.10.2016;09/11/2016;660;0;0;1;Spese correnti;3;Acquisto di beni e servizi;2;Acquisto di servizi;99;Altri servizi;999;Altri servizi diversi n.a.c.;09/11/2016
412;1;0;6.084,97;6.084,97;ERARIO; ;VERSAMENTO IVA DEBITO III TRIM. 2016 SCAD. 16.11.2016;09/11/2016;686;0;0;1;Spese correnti;10;Altre spese correnti;3;Versamenti IVA a debito;1;Versamenti IVA a debito per le gestioni commerciali;1;Versamenti IVA a debito per le gestioni commerciali;09/11/2016
413;1;0;44,53;44,53;omissis; ;CONTRIBUTO STRAORDINARIO MEDIANTE ACQUISTO GENERI PRIMA NECESSITA';11/11/2016;3410;0;105;1;Spese correnti;4;Trasferimenti correnti;2;Trasferimenti correnti a Famiglie;2;Interventi assistenziali;999;Altri assegni e sussidi assistenziali;11/11/2016
415;1;0;631,7;631,7;BANCA ITB; ;VOUCHER TRASPORTO DAL 14.11.2016 AL 18.11.2016;12/11/2016;1584;0;0;1;Spese correnti;3;Acquisto di beni e servizi;2;Acquisto di servizi;99;Altri servizi;999;Altri servizi diversi n.a.c.;12/11/2016
416;1;0;225;225;BANCA MONTE DEI PASCHI DI SIENA SPA; ;PAGAMENTO TASSA AVCP SCAD. 10.11.2016;12/11/2016;7801;0;0;2;Spese in conto capitale;5;Altre spese in conto capitale;99;Altre spese in conto capitale n.a.c.;99;Altre spese in conto capitale n.a.c.;999;Altre spese in conto capitale n.a.c.;12/11/2016
417;1;0;756,5;2.643,30;COOPERATIVA SOCIALE CODAMS DUE;Z30171DB14;SALDO Fatt.n. 0354PA  del 30/06/2016 GIUGNO;16/11/2016;3115;0;11;1;Spese correnti;3;Acquisto di beni e servizi;2;Acquisto di servizi;99;Altri servizi;999;Altri servizi diversi n.a.c.;16/11/2016
417;2;0;934,5;2.643,30;COOPERATIVA SOCIALE CODAMS DUE;Z30171DB14;SALDO Fatt.n. 0293PA  del 31/05/2016 MAGGIO;16/11/2016;3115;0;11;1;Spese correnti;3;Acquisto di beni e servizi;2;Acquisto di servizi;99;Altri servizi;999;Altri servizi diversi n.a.c.;16/11/2016
417;3;0;952,3;2.643,30;COOPERATIVA SOCIALE CODAMS DUE;Z30171DB14;SALDO Fatt.n. 0232PA  del 30/04/2016 APRILE;16/11/2016;3115;0;11;1;Spese correnti;3;Acquisto di beni e servizi;2;Acquisto di servizi;99;Altri servizi;999;Altri servizi diversi n.a.c.;16/11/2016
418;1;0;761,28;761,28;BLU SRL a socio unico;CIG ZDE1A6;SALDO Fatt.n. FATTPA 3_16  del 30/06/2016;16/11/2016;480;0;0;1;Spese correnti;3;Acquisto di beni e servizi;2;Acquisto di servizi;11;Prestazioni professionali e specialistiche;999;Altre prestazioni professionali e specialistiche n.a.c.;16/11/2016
419;1;0;393,33;393,33;MAGGIOLI SPA;Z1D1AB006F;SALDO Fatt.n. 0002128265  del 31/07/2016 FATT. IVA SPLIT P.;16/11/2016;110;2;0;1;Spese correnti;3;Acquisto di beni e servizi;1;Acquisto di beni;2;Altri beni di consumo;1;Carta, cancelleria e stampati;16/11/2016
420;1;0;1.671,30;1.671,30;WOLTERS KLUER ITALIA SRL; ;ACCONTO Fatt.n. 0051515671  del 06/06/2016;16/11/2016;110;2;0;1;Spese correnti;3;Acquisto di beni e servizi;1;Acquisto di beni;2;Altri beni di consumo;1;Carta, cancelleria e stampati;16/11/2016
422;1;0;152,7;152,7;BARBIERI ENZO E FIGLIO SRL;595806706E;SALDO Fatt.n. 42/PA  del 21/06/2016 RIF.TO VS. ORDINE N. 1608610 DEL 10/10/2014 RIF.TO VS. DETERMINAZIONE N. 42 DEL 10/10/2014;16/11/2016;390;1;0;1;Spese correnti;3;Acquisto di beni e servizi;2;Acquisto di servizi;9;Manutenzione ordinaria e riparazioni;6;Manutenzione ordinaria e riparazioni di macchine per ufficio;16/11/2016
423;1;0;6.566,04;6.566,04;STUDIO ASS.AVV.BRAMBILLA FUZIER;Z4D19FEA2B;SALDO Fatt.n. 24/PA  del 22/06/2016;16/11/2016;2700;0;0;1;Spese correnti;3;Acquisto di beni e servizi;2;Acquisto di servizi;11;Prestazioni professionali e specialistiche;6;Patrocinio legale;16/11/2016
424;1;0;1.449,00;1.449,00;CITTA' DI STRADELLA; ;CENTRO DIURNO DISABILI GIUGNO, LUGLIO E AGOSTO 2016;16/11/2016;3400;1;3;1;Spese correnti;4;Trasferimenti correnti;1;Trasferimenti correnti a Amministrazioni Pubbliche;2;Trasferimenti correnti a Amministrazioni Locali;3;Trasferimenti correnti a Comuni;16/11/2016
425;1;0;254,07;254,07;ELETTRICA BRONESE BELLAN RENATO SNC; ;SALDO Fatt.n. 008/16  del 30/09/2016 MANUTENZIONE IMPIANTI ELETTRICI CIMITERI;16/11/2016;3470;3;0;1;Spese correnti;3;Acquisto di beni e servizi;2;Acquisto di servizi;9;Manutenzione ordinaria e riparazioni;8;Manutenzione ordinaria e riparazioni di beni immobili;16/11/2016
426;1;0;316,96;316,96;ELETTRICA BRONESE BELLAN RENATO SNC; ;SALDO Fatt.n. 007/16  del 30/09/2016 MANUTENZIONE IMPIANTO SEMAFORICO;16/11/2016;2310;0;0;1;Spese correnti;3;Acquisto di beni e servizi;2;Acquisto di servizi;99;Altri servizi;999;Altri servizi diversi n.a.c.;16/11/2016
427;1;0;48,8;48,8;ELETTRICA BRONESE BELLAN RENATO SNC; ;SALDO Fatt.n. 006/16  del 30/09/2016 MANUTENZIONE IMPIANTO ELETTRICO EDIFICI COMUNALI;16/11/2016;390;4;0;1;Spese correnti;3;Acquisto di beni e servizi;2;Acquisto di servizi;9;Manutenzione ordinaria e riparazioni;8;Manutenzione ordinaria e riparazioni di beni immobili;16/11/2016
428;1;0;19;19;LIBARNA GAS SPA; ;SALDO Fatt.n. 100415  del 26/08/2016 METANO;16/11/2016;660;0;0;1;Spese correnti;3;Acquisto di beni e servizi;2;Acquisto di servizi;99;Altri servizi;999;Altri servizi diversi n.a.c.;16/11/2016
429;1;0;10;73;LIBARNA GAS SPA; ;SALDO Fatt.n. 100482  del 27/09/2016 METANO;16/11/2016;660;0;0;1;Spese correnti;3;Acquisto di beni e servizi;2;Acquisto di servizi;99;Altri servizi;999;Altri servizi diversi n.a.c.;16/11/2016
429;2;0;10;73;LIBARNA GAS SPA; ;SALDO Fatt.n. 100483  del 27/09/2016 METANO;16/11/2016;660;0;0;1;Spese correnti;3;Acquisto di beni e servizi;2;Acquisto di servizi;99;Altri servizi;999;Altri servizi diversi n.a.c.;16/11/2016
429;3;0;10;73;LIBARNA GAS SPA; ;SALDO Fatt.n. 100485  del 27/09/2016 METANO;16/11/2016;660;0;0;1;Spese correnti;3;Acquisto di beni e servizi;2;Acquisto di servizi;99;Altri servizi;999;Altri servizi diversi n.a.c.;16/11/2016
429;4;0;10;73;LIBARNA GAS SPA; ;SALDO Fatt.n. 100487  del 27/09/2016 METANO;16/11/2016;660;0;0;1;Spese correnti;3;Acquisto di beni e servizi;2;Acquisto di servizi;99;Altri servizi;999;Altri servizi diversi n.a.c.;16/11/2016
429;5;0;11;73;LIBARNA GAS SPA; ;SALDO Fatt.n. 100484  del 27/09/2016 METANO;16/11/2016;660;0;0;1;Spese correnti;3;Acquisto di beni e servizi;2;Acquisto di servizi;99;Altri servizi;999;Altri servizi diversi n.a.c.;16/11/2016
429;6;0;11;73;LIBARNA GAS SPA; ;SALDO Fatt.n. 100486  del 27/09/2016 METANO;16/11/2016;660;0;0;1;Spese correnti;3;Acquisto di beni e servizi;2;Acquisto di servizi;99;Altri servizi;999;Altri servizi diversi n.a.c.;16/11/2016
429;7;0;11;73;LIBARNA GAS SPA; ;SALDO Fatt.n. 100488  del 27/09/2016 METANO;16/11/2016;660;0;0;1;Spese correnti;3;Acquisto di beni e servizi;2;Acquisto di servizi;99;Altri servizi;999;Altri servizi diversi n.a.c.;16/11/2016
430;1;0;10.317,93;10.317,93;HALLEY INFORMATICA SRL;469347279D;SALDO Fatt.n. 10008/8/10  del 12/09/2016 ASSISTENZA AI PROGRAMMI ANNO 2016 ASSISTENZA HARDWARE ANNO 2016 Determina n. 55  del 19/11/2012 Responsabile ordine dell'Ente ELISABETTA LANATI;16/11/2016;390;1;0;1;Spese correnti;3;Acquisto di beni e servizi;2;Acquisto di servizi;9;Manutenzione ordinaria e riparazioni;6;Manutenzione ordinaria e riparazioni di macchine per ufficio;16/11/2016
431;1;0;1,97;72,84;PAVIA ACQUE S.C.A.R.L.; ;SALDO Fatt.n. 1350020161500152500  del 07/09/2016 B/Bollettazione;16/11/2016;660;0;0;1;Spese correnti;3;Acquisto di beni e servizi;2;Acquisto di servizi;99;Altri servizi;999;Altri servizi diversi n.a.c.;16/11/2016
431;2;0;1,97;72,84;PAVIA ACQUE S.C.A.R.L.; ;SALDO Fatt.n. 1350020161500152400  del 07/09/2016 B/Bollettazione;16/11/2016;660;0;0;1;Spese correnti;3;Acquisto di beni e servizi;2;Acquisto di servizi;99;Altri servizi;999;Altri servizi diversi n.a.c.;16/11/2016
431;3;0;3,76;72,84;PAVIA ACQUE S.C.A.R.L.; ;SALDO Fatt.n. 1350020161500152200  del 07/09/2016 B/Bollettazione;16/11/2016;660;0;0;1;Spese correnti;3;Acquisto di beni e servizi;2;Acquisto di servizi;99;Altri servizi;999;Altri servizi diversi n.a.c.;16/11/2016
431;4;0;6,58;72,84;PAVIA ACQUE S.C.A.R.L.; ;SALDO Fatt.n. 1350020161500151900  del 07/09/2016 B/Bollettazione;16/11/2016;660;0;0;1;Spese correnti;3;Acquisto di beni e servizi;2;Acquisto di servizi;99;Altri servizi;999;Altri servizi diversi n.a.c.;16/11/2016
431;5;0;9,87;72,84;PAVIA ACQUE S.C.A.R.L.; ;SALDO Fatt.n. 1350020161500151800  del 07/09/2016 B/Bollettazione;16/11/2016;660;0;0;1;Spese correnti;3;Acquisto di beni e servizi;2;Acquisto di servizi;99;Altri servizi;999;Altri servizi diversi n.a.c.;16/11/2016
431;6;0;10,77;72,84;PAVIA ACQUE S.C.A.R.L.; ;SALDO Fatt.n. 1350020161500151700  del 07/09/2016 B/Bollettazione;16/11/2016;660;0;0;1;Spese correnti;3;Acquisto di beni e servizi;2;Acquisto di servizi;99;Altri servizi;999;Altri servizi diversi n.a.c.;16/11/2016
431;7;0;16,46;72,84;PAVIA ACQUE S.C.A.R.L.; ;SALDO Fatt.n. 1350020161500152700  del 07/09/2016 B/Bollettazione;16/11/2016;660;0;0;1;Spese correnti;3;Acquisto di beni e servizi;2;Acquisto di servizi;99;Altri servizi;999;Altri servizi diversi n.a.c.;16/11/2016
431;8;0;21,46;72,84;PAVIA ACQUE S.C.A.R.L.; ;SALDO Fatt.n. 1350020161500152300  del 07/09/2016 B/Bollettazione;16/11/2016;660;0;0;1;Spese correnti;3;Acquisto di beni e servizi;2;Acquisto di servizi;99;Altri servizi;999;Altri servizi diversi n.a.c.;16/11/2016
432;1;0;1,97;1,97;PAVIA ACQUE S.C.A.R.L.; ;SALDO Fatt.n. 1350020161500152600  del 07/09/2016 B/Bollettazione;16/11/2016;2840;0;0;1;Spese correnti;3;Acquisto di beni e servizi;2;Acquisto di servizi;5;Utenze e canoni;5;Acqua;16/11/2016
433;1;0;10,35;111,65;PAVIA ACQUE S.C.A.R.L.; ;SALDO Fatt.n. 1350020161500151600  del 07/09/2016 B/Bollettazione;16/11/2016;3471;0;0;1;Spese correnti;3;Acquisto di beni e servizi;2;Acquisto di servizi;5;Utenze e canoni;5;Acqua;16/11/2016
433;2;0;101,3;111,65;PAVIA ACQUE S.C.A.R.L.; ;SALDO Fatt.n. 1350020161500152100  del 07/09/2016 B/Bollettazione;16/11/2016;3471;0;0;1;Spese correnti;3;Acquisto di beni e servizi;2;Acquisto di servizi;5;Utenze e canoni;5;Acqua;16/11/2016
434;1;0;23,91;23,91;TELECOM ITALIA SPA; ;SALDO Fatt.n. 8B00819103  del 05/08/2016 5BIM 2016;16/11/2016;660;0;0;1;Spese correnti;3;Acquisto di beni e servizi;2;Acquisto di servizi;99;Altri servizi;999;Altri servizi diversi n.a.c.;16/11/2016
435;1;0;9.412,93;18.825,86;BRONI-STRADELLA Spa;Z0619425A9;SALDO Fatt.n. 503/E  del 30/09/2016 RIFIUTI;16/11/2016;2940;0;0;1;Spese correnti;3;Acquisto di beni e servizi;2;Acquisto di servizi;99;Altri servizi;999;Altri servizi diversi n.a.c.;16/11/2016
435;2;0;9.412,93;18.825,86;BRONI-STRADELLA Spa;Z0619425A9;SALDO Fatt.n. 575/E  del 31/10/2016 RIFIUTI OTTOBRE 2016;16/11/2016;2940;0;0;1;Spese correnti;3;Acquisto di beni e servizi;2;Acquisto di servizi;99;Altri servizi;999;Altri servizi diversi n.a.c.;16/11/2016
436;1;0;17.122,22;17.122,22;BRONI-STRADELLA PUBBLICA S.R.L.; ;ACCONTO Fatt.n. 2/E  del 27/09/2016 FATTURA DI VENDITA;16/11/2016;2846;0;105;1;Spese correnti;3;Acquisto di beni e servizi;2;Acquisto di servizi;5;Utenze e canoni;5;Acqua;16/11/2016
437;1;0;473,46;473,46;C.M.E. MARMI E GRANITI;35487297CE;SALDO Fatt.n. 23/PA  del 31/08/2016 COTTIMO FIDUCIARIO;16/11/2016;3470;1;0;1;Spese correnti;3;Acquisto di beni e servizi;2;Acquisto di servizi;99;Altri servizi;999;Altri servizi diversi n.a.c.;16/11/2016
438;1;0;705,28;705,28;MARTA S.C.R.L.;ZB015CD76E;SALDO Fatt.n. 910/EL  del 30/09/2016 FELSP;16/11/2016;3110;0;0;1;Spese correnti;3;Acquisto di beni e servizi;2;Acquisto di servizi;99;Altri servizi;999;Altri servizi diversi n.a.c.;16/11/2016
439;1;0;922,28;922,28;MARTA S.C.R.L.;ZB015CD76E;SALDO Fatt.n. 734/EL  del 31/07/2016 ACCOMPAGNATORE GIUGNO;16/11/2016;1582;0;10;1;Spese correnti;3;Acquisto di beni e servizi;2;Acquisto di servizi;99;Altri servizi;999;Altri servizi diversi n.a.c.;16/11/2016
440;1;0;2.086,24;2.086,24;BISI MAURIZIO;Z0A1216203;SALDO Fatt.n. FE01-2016PROG13-2016  del 04/10/2016 PARCELLA;16/11/2016;480;0;82;1;Spese correnti;3;Acquisto di beni e servizi;2;Acquisto di servizi;11;Prestazioni professionali e specialistiche;999;Altre prestazioni professionali e specialistiche n.a.c.;16/11/2016
441;1;0;66,19;208,02;INFORMA SRL;ZD7125D1BE;SALDO Fatt.n. 3118/E  del 26/08/2016 FATTURA DIFFERITA ELETTRONICA;16/11/2016;121;0;9;1;Spese correnti;3;Acquisto di beni e servizi;2;Acquisto di servizi;16;Servizi amministrativi;999;Altre spese per servizi amministrativi;16/11/2016
441;2;0;66,19;208,02;INFORMA SRL;ZD7125D1BE;SALDO Fatt.n. 3944/E  del 28/10/2016 FATTURA DIFFERITA ELETTRONICA;16/11/2016;121;0;9;1;Spese correnti;3;Acquisto di beni e servizi;2;Acquisto di servizi;16;Servizi amministrativi;999;Altre spese per servizi amministrativi;16/11/2016
441;3;0;75,64;208,02;INFORMA SRL;ZD7125D1BE;SALDO Fatt.n. 3485/E  del 23/09/2016 FATTURA IMMEDIATA ELETTRONICA;16/11/2016;121;0;9;1;Spese correnti;3;Acquisto di beni e servizi;2;Acquisto di servizi;16;Servizi amministrativi;999;Altre spese per servizi amministrativi;16/11/2016
442;1;0;1.965,00;1.965,00;MONTAGNA ASSICURAZIONI; ;ASSICURAZIONE SCUOLABUS MERCEDES DT795YG;16/11/2016;1583;0;0;1;Spese correnti;3;Acquisto di beni e servizi;2;Acquisto di servizi;99;Altri servizi;999;Altri servizi diversi n.a.c.;16/11/2016
443;1;0;304,33;1.143,72;omissis; ;CONTRIBUTO ASILO NIDO ANNO 2014/2015 - DET. 59 DEL 19.11.2016;21/11/2016;3130;1;0;1;Spese correnti;4;Trasferimenti correnti;2;Trasferimenti correnti a Famiglie;5;Altri trasferimenti a famiglie;999;Altri trasferimenti a famiglie n.a.c.;21/11/2016
443;2;0;839,39;1.143,72;omissis; ;CONTRIBUTO ASILO NIDO ANNO 2014/2015 - DET. 59 DEL 19.11.2016;21/11/2016;3130;1;0;1;Spese correnti;4;Trasferimenti correnti;2;Trasferimenti correnti a Famiglie;5;Altri trasferimenti a famiglie;999;Altri trasferimenti a famiglie n.a.c.;21/11/2016
444;1;0;228;228;omissis; ;CONTRIBUTO ASILO NIDO ANNO 2014/2015 MEDIANTE PAGAMENTO TARI 2015;21/11/2016;3130;1;0;1;Spese correnti;4;Trasferimenti correnti;2;Trasferimenti correnti a Famiglie;5;Altri trasferimenti a famiglie;999;Altri trasferimenti a famiglie n.a.c.;21/11/2016
458;1;0;3.172,00;3.172,00;CRISTIANO ALBERTI;ZF1165EB03;SALDO Fatt.n. FATTPA 7_16  del 03/10/2016 VARIANTE PGT;22/11/2016;7833;0;124;2;Spese in conto capitale;5;Altre spese in conto capitale;99;Altre spese in conto capitale n.a.c.;99;Altre spese in conto capitale n.a.c.;999;Altre spese in conto capitale n.a.c.;22/11/2016
460;1;0;3.132,00;10.612,50;MEZZADRA MARIO; ;INDENNITA' PER CESSIONE BONARIA LAVORI RIQUALIFICAZIONE VIARIA DELLE INTERSEZIONI DI VIA GRISINI, STRADA DEI CAMPANINI CON LA EX SP 617 BRONESE - DET. RST 33 DEL 14.11.2016;24/11/2016;7801;0;0;2;Spese in conto capitale;5;Altre spese in conto capitale;99;Altre spese in conto capitale n.a.c.;99;Altre spese in conto capitale n.a.c.;999;Altre spese in conto capitale n.a.c.;24/11/2016
460;2;0;1.200,50;10.612,50;TACCONI GIUSEPPINA; ;INDENNITA' PER CESSIONE BONARIA LAVORI RIQUALIFICAZIONE VIARIA DELLE INTERSEZIONI DI VIA GRISINI, STRADA DEI CAMPANINI CON LA EX SP 617 BRONESE - DET. RST 33 DEL 14.11.2016;24/11/2016;7801;0;0;2;Spese in conto capitale;5;Altre spese in conto capitale;99;Altre spese in conto capitale n.a.c.;99;Altre spese in conto capitale n.a.c.;999;Altre spese in conto capitale n.a.c.;24/11/2016
460;3;0;1.040,00;10.612,50;VANETTA ROSA; ;INDENNITA' PER CESSIONE BONARIA LAVORI RIQUALIFICAZIONE VIARIA DELLE INTERSEZIONI DI VIA GRISINI, STRADA DEI CAMPANINI CON LA EX SP 617 BRONESE - DET. RST 33 DEL 14.11.2016;24/11/2016;7801;0;0;2;Spese in conto capitale;5;Altre spese in conto capitale;99;Altre spese in conto capitale n.a.c.;99;Altre spese in conto capitale n.a.c.;999;Altre spese in conto capitale n.a.c.;24/11/2016
460;4;0;5.240,00;10.612,50;VIGO MARCO; ;INDENNITA' PER CESSIONE BONARIA LAVORI RIQUALIFICAZIONE VIARIA DELLE INTERSEZIONI DI VIA GRISINI, STRADA DEI CAMPANINI CON LA EX SP 617 BRONESE - DET. RST 33 DEL 14.11.2016;24/11/2016;7801;0;0;2;Spese in conto capitale;5;Altre spese in conto capitale;99;Altre spese in conto capitale n.a.c.;99;Altre spese in conto capitale n.a.c.;999;Altre spese in conto capitale n.a.c.;24/11/2016
461;1;0;31,7;31,7;BANCA ITB; ;VOUCHER TRASPORTO DEL 05.12.2016;05/12/2016;1584;0;0;1;Spese correnti;3;Acquisto di beni e servizi;2;Acquisto di servizi;99;Altri servizi;999;Altri servizi diversi n.a.c.;05/12/2016
462;1;0;267;267;POSTE ITALIANE SPA; ;ACQUISTO FRANCOBOLLI;05/12/2016;120;0;0;1;Spese correnti;3;Acquisto di beni e servizi;2;Acquisto di servizi;16;Servizi amministrativi;2;Spese postali;05/12/2016
463;1;0;5.999,99;5.999,99;UNIPOL SAI - AGENTE ARDISSONE PAOLO; ;POLIZZA RC N. 65/761665247 SCAD. 11.11.2016;05/12/2016;660;0;0;1;Spese correnti;3;Acquisto di beni e servizi;2;Acquisto di servizi;99;Altri servizi;999;Altri servizi diversi n.a.c.;05/12/2016
464;1;0;272,69;272,69;UNIPOL SAI - AGENTE ARDISSONE PAOLO; ;POLIZZA INFORTUNI N. 177/761670290 SCAD. 11.11.2016;05/12/2016;390;1;0;1;Spese correnti;3;Acquisto di beni e servizi;2;Acquisto di servizi;9;Manutenzione ordinaria e riparazioni;6;Manutenzione ordinaria e riparazioni di macchine per ufficio;05/12/2016
465;1;0;23,88;239,53;TELECOM ITALIA SPA;54663373FE;SALDO Fatt.n. 8B00818492  del 05/08/2016 5BIM 2016 - PROVV.N. 108 DEL 15.11.2016;05/12/2016;660;0;0;1;Spese correnti;3;Acquisto di beni e servizi;2;Acquisto di servizi;99;Altri servizi;999;Altri servizi diversi n.a.c.;05/12/2016
465;2;0;24,06;239,53;TELECOM ITALIA SPA;54663373FE;SALDO Fatt.n. 8B00818116  del 05/08/2016 5BIM 2016 - PROVV.N. 110 DEL 15.11.2016;05/12/2016;660;0;0;1;Spese correnti;3;Acquisto di beni e servizi;2;Acquisto di servizi;99;Altri servizi;999;Altri servizi diversi n.a.c.;05/12/2016
465;3;0;32,38;239,53;TELECOM ITALIA SPA;54663373FE;SALDO Fatt.n. 8B00817868  del 05/08/2016 5BIM 2016 - PROVV.N. 109 DEL 23.11.16;05/12/2016;660;0;0;1;Spese correnti;3;Acquisto di beni e servizi;2;Acquisto di servizi;99;Altri servizi;999;Altri servizi diversi n.a.c.;05/12/2016
465;4;0;70,16;239,53;TELECOM ITALIA SPA;54663373FE;SALDO Fatt.n. 8B00818927  del 05/08/2016 5BIM 2016 - PROVV.N. 111 DEL 15.11.2016;05/12/2016;660;0;0;1;Spese correnti;3;Acquisto di beni e servizi;2;Acquisto di servizi;99;Altri servizi;999;Altri servizi diversi n.a.c.;05/12/2016
465;5;0;89,05;239,53;TELECOM ITALIA SPA;54663373FE;SALDO Fatt.n. 8B00819503  del 05/08/2016 5BIM 2016 - PROVV.N. 107 DEL 15.11.2016;05/12/2016;660;0;0;1;Spese correnti;3;Acquisto di beni e servizi;2;Acquisto di servizi;99;Altri servizi;999;Altri servizi diversi n.a.c.;05/12/2016
466;1;0;42,14;42,14;ENEL SERVIZIO ELETTRICO SPA; ;SALDO Fatt.n. 188550270101211  del 14/10/2016 VIA FALCONE - PROVV.N. 100 DEL 03.11.2016;05/12/2016;660;0;0;1;Spese correnti;3;Acquisto di beni e servizi;2;Acquisto di servizi;99;Altri servizi;999;Altri servizi diversi n.a.c.;05/12/2016
479;1;0;4.257,94;4.257,94;COMUNE DI CAMPOSPINOSO; ;RIMBORSO UTENZE ELETTRICHE UFFICI E AMBULATORI ANNO 2015;07/12/2016;661;0;92;1;Spese correnti;3;Acquisto di beni e servizi;2;Acquisto di servizi;5;Utenze e canoni;4;Energia elettrica;07/12/2016
480;1;0;373,42;373,42;COMUNE DI CAMPOSPINOSO; ;RIMBORSO utenze elettriche uffici e ambulatori 2015;07/12/2016;660;4;91;1;Spese correnti;3;Acquisto di beni e servizi;2;Acquisto di servizi;9;Manutenzione ordinaria e riparazioni;8;Manutenzione ordinaria e riparazioni di beni immobili;07/12/2016
481;1;0;316,61;316,61;COMUNE DI CAMPOSPINOSO; ;RIMBORSO UTENZE ELETTRICHE CIMITERO 2015;07/12/2016;3475;0;116;1;Spese correnti;3;Acquisto di beni e servizi;2;Acquisto di servizi;5;Utenze e canoni;4;Energia elettrica;07/12/2016
482;1;0;54.197,51;54.197,51;COMUNE DI CAMPOSPINOSO; ;RIMBORSO PER SPESE ILLUMINAZIONE PUBBLICA 2015;07/12/2016;2390;0;103;1;Spese correnti;3;Acquisto di beni e servizi;2;Acquisto di servizi;5;Utenze e canoni;4;Energia elettrica;07/12/2016
483;1;0;1.300,00;1.300,00;PARROCCHIA S.GIOVANNI BATTISTA; ;CONTRIBUTO CONCERTO DI NATALE 2016 - Delibera di Giunta n.80   del 05.12.2016;07/12/2016;1780;0;0;1;Spese correnti;4;Trasferimenti correnti;4;Trasferimenti correnti a Istituzioni Sociali Private;1;Trasferimenti correnti a Istituzioni Sociali Private;1;Trasferimenti correnti a Istituzioni Sociali Private;07/12/2016
484;1;0;37,8;37,8;omissis; ;SALDO CONTRIBUTO STRAORDINARIO ANNO 2015;09/12/2016;3410;0;105;1;Spese correnti;4;Trasferimenti correnti;2;Trasferimenti correnti a Famiglie;2;Interventi assistenziali;999;Altri assegni e sussidi assistenziali;09/12/2016
486;1;0;41,83;41,83;ENEL SERVIZIO ELETTRICO SPA; ;SALDO Fatt.n. 188550270101212  del 11/11/2016 via falcone - PROVV.N. 115 DEL 01.12.2016;09/12/2016;660;0;0;1;Spese correnti;3;Acquisto di beni e servizi;2;Acquisto di servizi;99;Altri servizi;999;Altri servizi diversi n.a.c.;09/12/2016
487;1;0;59,34;59,34;ENEL SERVIZIO ELETTRICO SPA; ;SALDO Fatt.n. 188550080108519  del 14/09/2016 ILLUM.PUBBLICA;09/12/2016;2390;0;0;1;Spese correnti;3;Acquisto di beni e servizi;2;Acquisto di servizi;5;Utenze e canoni;4;Energia elettrica;09/12/2016
488;1;0;9;292;LIBARNA GAS SPA; ;SALDO Fatt.n. 100558  del 26/10/2016 metano;09/12/2016;660;0;0;1;Spese correnti;3;Acquisto di beni e servizi;2;Acquisto di servizi;99;Altri servizi;999;Altri servizi diversi n.a.c.;09/12/2016
488;2;0;9;292;LIBARNA GAS SPA; ;SALDO Fatt.n. 100557  del 26/10/2016 metano;09/12/2016;660;0;0;1;Spese correnti;3;Acquisto di beni e servizi;2;Acquisto di servizi;99;Altri servizi;999;Altri servizi diversi n.a.c.;09/12/2016
488;3;0;10;292;LIBARNA GAS SPA; ;SALDO Fatt.n. 100569  del 27/10/2016 metano;09/12/2016;660;0;0;1;Spese correnti;3;Acquisto di beni e servizi;2;Acquisto di servizi;99;Altri servizi;999;Altri servizi diversi n.a.c.;09/12/2016
488;4;0;10;292;LIBARNA GAS SPA; ;SALDO Fatt.n. 100560  del 26/10/2016 metano;09/12/2016;660;0;0;1;Spese correnti;3;Acquisto di beni e servizi;2;Acquisto di servizi;99;Altri servizi;999;Altri servizi diversi n.a.c.;09/12/2016
488;5;0;51;292;LIBARNA GAS SPA; ;SALDO Fatt.n. 100559  del 26/10/2016 metano;09/12/2016;660;0;0;1;Spese correnti;3;Acquisto di beni e servizi;2;Acquisto di servizi;99;Altri servizi;999;Altri servizi diversi n.a.c.;09/12/2016
488;6;0;94;292;LIBARNA GAS SPA; ;SALDO Fatt.n. 100570  del 27/10/2016 metano;09/12/2016;660;0;0;1;Spese correnti;3;Acquisto di beni e servizi;2;Acquisto di servizi;99;Altri servizi;999;Altri servizi diversi n.a.c.;09/12/2016
488;7;0;109;292;LIBARNA GAS SPA; ;SALDO Fatt.n. 100561  del 26/10/2016 metano;09/12/2016;660;0;0;1;Spese correnti;3;Acquisto di beni e servizi;2;Acquisto di servizi;99;Altri servizi;999;Altri servizi diversi n.a.c.;09/12/2016
489;1;0;590,48;1.771,44;COOPERATIVA TICINO;6057911A4B;SALDO Fatt.n. FATTPA 84_16  del 01/10/2016 SETTEMBRE;09/12/2016;390;0;5;1;Spese correnti;3;Acquisto di beni e servizi;2;Acquisto di servizi;13;Servizi ausiliari per il funzionamento dell'ente;2;Servizi di pulizia e lavanderia;09/12/2016
489;2;0;590,48;1.771,44;COOPERATIVA TICINO;6057911A4B;SALDO Fatt.n. FATTPA 98_16  del 02/11/2016 OTTOBRE;09/12/2016;390;0;5;1;Spese correnti;3;Acquisto di beni e servizi;2;Acquisto di servizi;13;Servizi ausiliari per il funzionamento dell'ente;2;Servizi di pulizia e lavanderia;09/12/2016
489;3;0;590,48;1.771,44;COOPERATIVA TICINO;6057911A4B;SALDO Fatt.n. FATTPA 108_16  del 01/12/2016 NOVEMBRE 2016;09/12/2016;390;0;5;1;Spese correnti;3;Acquisto di beni e servizi;2;Acquisto di servizi;13;Servizi ausiliari per il funzionamento dell'ente;2;Servizi di pulizia e lavanderia;09/12/2016
490;1;0;687,99;687,99;TEMPORARY S.p.A con Unico Socio; ;SALDO Fatt.n. 2016001458-E  del 31/10/2016 LAV.TEMPORANEO OTTOBRE;09/12/2016;125;0;0;1;Spese correnti;3;Acquisto di beni e servizi;2;Acquisto di servizi;12;Lavoro flessibile, quota LSU e acquisto di servizi da agenzie di lavoro interinale;1;Acquisto di servizi da agenzie di lavoro interinale;09/12/2016
491;1;0;1.610,00;1.610,00;COMUNE DI STRADELLA; ;QUOTA C.D.D. SETTEMBRE E OTTOBRE 2016 CARBONARO E SILVESTRI;09/12/2016;3400;1;0;1;Spese correnti;4;Trasferimenti correnti;1;Trasferimenti correnti a Amministrazioni Pubbliche;2;Trasferimenti correnti a Amministrazioni Locali;3;Trasferimenti correnti a Comuni;09/12/2016
492;1;0;1.093,30;1.093,30;UNIONE SPORTIVA ARNABOLDI CF.: 93001630180; ;SALDO Fatt.n. FATTPA 1_16  del 31/07/2016;09/12/2016;3110;0;0;1;Spese correnti;3;Acquisto di beni e servizi;2;Acquisto di servizi;99;Altri servizi;999;Altri servizi diversi n.a.c.;09/12/2016
493;1;0;66,19;208,02;INFORMA SRL;ZD7125D1BE;SALDO Fatt.n. 2336/E  del 27/06/2016 FATTURA DIFFERITA ELETTRONICA;09/12/2016;121;0;0;1;Spese correnti;3;Acquisto di beni e servizi;2;Acquisto di servizi;16;Servizi amministrativi;999;Altre spese per servizi amministrativi;09/12/2016
493;2;0;66,19;208,02;INFORMA SRL;ZD7125D1BE;SALDO Fatt.n. 2740/E  del 31/07/2016 FATTURA DIFFERITA ELETTRONICA;09/12/2016;121;0;0;1;Spese correnti;3;Acquisto di beni e servizi;2;Acquisto di servizi;16;Servizi amministrativi;999;Altre spese per servizi amministrativi;09/12/2016
493;3;0;75,64;208,02;INFORMA SRL;ZD7125D1BE;SALDO Fatt.n. 4325/E  del 28/11/2016 FATTURA DIFFERITA ELETTRONICA;09/12/2016;121;0;0;1;Spese correnti;3;Acquisto di beni e servizi;2;Acquisto di servizi;16;Servizi amministrativi;999;Altre spese per servizi amministrativi;09/12/2016
495;1;0;41,7;41,7;BANCA ITB; ;VOUCHER TRASPORTO DEL 13.12.2016;13/12/2016;1584;0;0;1;Spese correnti;3;Acquisto di beni e servizi;2;Acquisto di servizi;99;Altri servizi;999;Altri servizi diversi n.a.c.;13/12/2016
498;1;0;380;4.190,00;CAROPRESE BENITO; ;CESSIONE BONARIA AREE VIA AME';14/12/2016;7806;0;0;2;Spese in conto capitale;5;Altre spese in conto capitale;99;Altre spese in conto capitale n.a.c.;99;Altre spese in conto capitale n.a.c.;999;Altre spese in conto capitale n.a.c.;14/12/2016
498;2;0;480;4.190,00;CAROPRESE GERARDO; ;CESSIONE BONARIA AREE VIA AME';14/12/2016;7806;0;0;2;Spese in conto capitale;5;Altre spese in conto capitale;99;Altre spese in conto capitale n.a.c.;99;Altre spese in conto capitale n.a.c.;999;Altre spese in conto capitale n.a.c.;14/12/2016
498;3;0;560;4.190,00;CAROPRESE GIUSEPPE, PERRI ANTONIA; ;CESSIONE BONARIA AREE VIA AME';14/12/2016;7806;0;0;2;Spese in conto capitale;5;Altre spese in conto capitale;99;Altre spese in conto capitale n.a.c.;99;Altre spese in conto capitale n.a.c.;999;Altre spese in conto capitale n.a.c.;14/12/2016
498;4;0;440;4.190,00;CAROPRESE LUIGI - QUINTIERO VERRUCCIA; ;CESSIONE BONARIA AREE VIA AME';14/12/2016;7806;0;0;2;Spese in conto capitale;5;Altre spese in conto capitale;99;Altre spese in conto capitale n.a.c.;99;Altre spese in conto capitale n.a.c.;999;Altre spese in conto capitale n.a.c.;14/12/2016
498;5;0;1.000,00;4.190,00;CRAVANO SALVA; ;CESSIONE BONARIA AREE VIA AME';14/12/2016;7806;0;0;2;Spese in conto capitale;5;Altre spese in conto capitale;99;Altre spese in conto capitale n.a.c.;99;Altre spese in conto capitale n.a.c.;999;Altre spese in conto capitale n.a.c.;14/12/2016
498;6;0;1.330,00;4.190,00;DEFILIPPI AURELIO, PONZINIBIO ANNA ROSA; ;CESSIONE BONARIA AREE VIA AME';14/12/2016;7806;0;0;2;Spese in conto capitale;5;Altre spese in conto capitale;99;Altre spese in conto capitale n.a.c.;99;Altre spese in conto capitale n.a.c.;999;Altre spese in conto capitale n.a.c.;14/12/2016
499;1;0;3,1;3,1;ARAN - AGENZIA PER LA RAPPRES. NEGOZ.PUBBLICHE AMMIN.; ;QUOTA CONTRIBUTIVA ARAN 2016 - DET.RST N. 64 DEL 14.12.216;14/12/2016;660;2;0;1;Spese correnti;3;Acquisto di beni e servizi;2;Acquisto di servizi;99;Altri servizi;999;Altri servizi diversi n.a.c.;14/12/2016
500;1;0;73,91;73,91;"T.ET.SAS di ROSSIGNOLI FABRIZIO &amp; C."; ;SALDO Fatt.n. FATTPA 9_16  del 21/11/2016 libri;14/12/2016;1330;2;0;1;Spese correnti;4;Trasferimenti correnti;3;Trasferimenti correnti a Imprese;99;Trasferimenti correnti a altre imprese;999;Trasferimenti correnti a altre imprese;14/12/2016
501;1;0;69,3;69,3;IL PASTELLO S.N.C. di Bellinzona N. e C.; ;SALDO Fatt.n. FATTPA 12_16  del 24/11/2016 libri;14/12/2016;1330;2;0;1;Spese correnti;4;Trasferimenti correnti;3;Trasferimenti correnti a Imprese;99;Trasferimenti correnti a altre imprese;999;Trasferimenti correnti a altre imprese;14/12/2016
502;1;0;1.312,21;1.312,21;CARTOLERIA VANETTA DI MOLINARI IVANO; ;SALDO Fatt.n. FatPAM 26/EL  del 10/11/2016 libri;14/12/2016;1330;2;0;1;Spese correnti;4;Trasferimenti correnti;3;Trasferimenti correnti a Imprese;99;Trasferimenti correnti a altre imprese;999;Trasferimenti correnti a altre imprese;14/12/2016
503;1;0;22;111,84;ALBERIZZI PIERLUISA; ;CEDOLE LIBRI ELEMENTARI - DET- RSF 65 DEL 14.12.2016;14/12/2016;1330;2;0;1;Spese correnti;4;Trasferimenti correnti;3;Trasferimenti correnti a Imprese;99;Trasferimenti correnti a altre imprese;999;Trasferimenti correnti a altre imprese;14/12/2016
503;2;0;21,27;111,84;CARTOLERIA PASCOLI DI PARECHI FABIO; ;CEDOLE LIBRI ELEMENTARI - DET- RSF 65 DEL 14.12.2016;14/12/2016;1330;2;0;1;Spese correnti;4;Trasferimenti correnti;3;Trasferimenti correnti a Imprese;99;Trasferimenti correnti a altre imprese;999;Trasferimenti correnti a altre imprese;14/12/2016
503;3;0;21,27;111,84;CATTANEO ADRIANA GUGLIELMINA; ;CEDOLE LIBRI ELEMENTARI - DET- RSF 65 DEL 14.12.2016;14/12/2016;1330;2;0;1;Spese correnti;4;Trasferimenti correnti;3;Trasferimenti correnti a Imprese;99;Trasferimenti correnti a altre imprese;999;Trasferimenti correnti a altre imprese;14/12/2016
503;4;0;47,3;111,84;EMMEBI DI BALLONI FRANCESCO; ;CEDOLE LIBRI ELEMENTARI - DET- RSF 65 DEL 14.12.2016;14/12/2016;1330;2;0;1;Spese correnti;4;Trasferimenti correnti;3;Trasferimenti correnti a Imprese;99;Trasferimenti correnti a altre imprese;999;Trasferimenti correnti a altre imprese;14/12/2016
504;1;0;3.783,00;3.783,00;COMUNE DI BRONI; ;COMPARTECIPAZIONE AI PIANI DI ZONA  2016;14/12/2016;3400;0;0;1;Spese correnti;4;Trasferimenti correnti;1;Trasferimenti correnti a Amministrazioni Pubbliche;2;Trasferimenti correnti a Amministrazioni Locali;3;Trasferimenti correnti a Comuni;14/12/2016
505;1;0;761,28;761,28;STUDIO FRASCHINI RAG. NADIA; ;SALDO Fatt.n. 11/FEPA  del 28/10/2016 incarico iva;14/12/2016;660;3;90;1;Spese correnti;3;Acquisto di beni e servizi;2;Acquisto di servizi;16;Servizi amministrativi;999;Altre spese per servizi amministrativi;14/12/2016
506;1;0;5.042,00;5.042,00;BRONI-STRADELLA PUBBLICA S.R.L.; ;SALDO Fatt.n. 2/E  del 27/09/2016 FATTURA DI VENDITA;14/12/2016;2846;0;0;1;Spese correnti;3;Acquisto di beni e servizi;2;Acquisto di servizi;5;Utenze e canoni;5;Acqua;14/12/2016
507;1;0;733;2.548,00;KUWAIT PETROLEUM ITALIA SPA;ZCB1769D6B;ACCONTO Fatt.n. PJ00053294  del 31/10/2016;14/12/2016;1570;0;0;1;Spese correnti;3;Acquisto di beni e servizi;1;Acquisto di beni;2;Altri beni di consumo;2;Carburanti, combustibili e lubrificanti;14/12/2016
507;2;0;838;2.548,00;KUWAIT PETROLEUM ITALIA SPA; ;ACCONTO Fatt.n. PJ00049436  del 30/09/2016;14/12/2016;1570;0;0;1;Spese correnti;3;Acquisto di beni e servizi;1;Acquisto di beni;2;Altri beni di consumo;2;Carburanti, combustibili e lubrificanti;14/12/2016
507;3;0;977;2.548,00;KUWAIT PETROLEUM ITALIA SPA; ;ACCONTO Fatt.n. PJ00057178  del 30/11/2016;14/12/2016;1570;0;0;1;Spese correnti;3;Acquisto di beni e servizi;1;Acquisto di beni;2;Altri beni di consumo;2;Carburanti, combustibili e lubrificanti;14/12/2016
508;1;0;98;345,5;KUWAIT PETROLEUM ITALIA SPA; ;ACCONTO Fatt.n. PJ00053294  del 31/10/2016;14/12/2016;2290;0;0;1;Spese correnti;3;Acquisto di beni e servizi;1;Acquisto di beni;2;Altri beni di consumo;999;Altri beni e materiali di consumo n.a.c.;14/12/2016
508;2;0;120;345,5;KUWAIT PETROLEUM ITALIA SPA; ;ACCONTO Fatt.n. PJ00049436  del 30/09/2016;14/12/2016;2290;0;0;1;Spese correnti;3;Acquisto di beni e servizi;1;Acquisto di beni;2;Altri beni di consumo;999;Altri beni e materiali di consumo n.a.c.;14/12/2016
508;3;0;127,5;345,5;KUWAIT PETROLEUM ITALIA SPA; ;ACCONTO Fatt.n. PJ00057178  del 30/11/2016;14/12/2016;2290;0;0;1;Spese correnti;3;Acquisto di beni e servizi;1;Acquisto di beni;2;Altri beni di consumo;999;Altri beni e materiali di consumo n.a.c.;14/12/2016
509;1;0;40;200;KUWAIT PETROLEUM ITALIA SPA; ;SALDO Fatt.n. PJ00053294  del 31/10/2016;14/12/2016;385;1;0;1;Spese correnti;3;Acquisto di beni e servizi;1;Acquisto di beni;2;Altri beni di consumo;2;Carburanti, combustibili e lubrificanti;14/12/2016
509;2;0;70;200;KUWAIT PETROLEUM ITALIA SPA;ZCB1769D6B;SALDO Fatt.n. PJ00049436  del 30/09/2016;14/12/2016;385;1;0;1;Spese correnti;3;Acquisto di beni e servizi;1;Acquisto di beni;2;Altri beni di consumo;2;Carburanti, combustibili e lubrificanti;14/12/2016
509;3;0;90;200;KUWAIT PETROLEUM ITALIA SPA;ZCB1769D6B;SALDO Fatt.n. PJ00057178  del 30/11/2016;14/12/2016;385;1;0;1;Spese correnti;3;Acquisto di beni e servizi;1;Acquisto di beni;2;Altri beni di consumo;2;Carburanti, combustibili e lubrificanti;14/12/2016
510;1;0;41,27;1.190,46;ECOTEC S.R.L.; ;SALDO Fatt.n. 294  del 01/12/2016 Ft Split Payment ex art.17-ter DPR 633/72;14/12/2016;390;1;0;1;Spese correnti;3;Acquisto di beni e servizi;2;Acquisto di servizi;9;Manutenzione ordinaria e riparazioni;6;Manutenzione ordinaria e riparazioni di macchine per ufficio;14/12/2016
510;2;0;366;1.190,46;ECOTEC S.R.L.; ;SALDO Fatt.n. 301  del 01/12/2016 Ft Split Payment ex art.17-ter DPR 633/72;14/12/2016;390;1;0;1;Spese correnti;3;Acquisto di beni e servizi;2;Acquisto di servizi;9;Manutenzione ordinaria e riparazioni;6;Manutenzione ordinaria e riparazioni di macchine per ufficio;14/12/2016
510;3;0;783,19;1.190,46;ECOTEC S.R.L.; ;SALDO Fatt.n. 270  del 05/10/2016 Ft Split Payment ex art.17-ter DPR 633/72;14/12/2016;390;1;0;1;Spese correnti;3;Acquisto di beni e servizi;2;Acquisto di servizi;9;Manutenzione ordinaria e riparazioni;6;Manutenzione ordinaria e riparazioni di macchine per ufficio;14/12/2016
511;1;0;16.610,95;16.610,95;ENEL DISTRIBUZIONE SPA;6781150DFE;SALDO Fatt.n. 0000916900007793  del 03/12/2016 SPOSTAMENTO IMPIANTI;14/12/2016;7800;0;0;2;Spese in conto capitale;5;Altre spese in conto capitale;99;Altre spese in conto capitale n.a.c.;99;Altre spese in conto capitale n.a.c.;999;Altre spese in conto capitale n.a.c.;14/12/2016
512;1;0;1.095,47;1.095,47;C.M.E. MARMI E GRANITI;35487297CE;SALDO Fatt.n. 24/PA  del 03/10/2016 COTTIMO FIDUCIARIO;14/12/2016;3470;1;0;1;Spese correnti;3;Acquisto di beni e servizi;2;Acquisto di servizi;99;Altri servizi;999;Altri servizi diversi n.a.c.;14/12/2016
513;1;0;18.378,81;18.378,81;IMPRESA TOSCA S.N.C. DI TOSCA MARINO E ANDREA;Z3F1AE036C;SALDO Fatt.n. 1/FE  del 25/11/2016 LAVORI DI DEMOLIZIONE DI FABBRICATO DI CIVILE ABITAZIONE IN AREA DESTINATA ALLA VIABILITA', IN PREVISIONE DI REALIZZAZIONE ROTATORIA SRADALE IN COMUNE DI CAMPOSPINOSO V. GRISINI ANGOLO V. SAN CONTARDO;14/12/2016;7805;0;0;2;Spese in conto capitale;5;Altre spese in conto capitale;99;Altre spese in conto capitale n.a.c.;99;Altre spese in conto capitale n.a.c.;999;Altre spese in conto capitale n.a.c.;14/12/2016
514;1;0;9.412,93;9.412,93;BRONI-STRADELLA Spa;Z0619425A9;SALDO Fatt.n. 635/E  del 30/11/2016 RIFIUTI NOVEMBRE;14/12/2016;2940;0;0;1;Spese correnti;3;Acquisto di beni e servizi;2;Acquisto di servizi;99;Altri servizi;999;Altri servizi diversi n.a.c.;14/12/2016
515;1;0;2.307,25;2.307,25;BRONI-STRADELLA Spa;Z0619425A9;SALDO Fatt.n. 634/E  del 09/11/2016 SPAZZAMENTO;14/12/2016;2930;0;0;1;Spese correnti;3;Acquisto di beni e servizi;2;Acquisto di servizi;99;Altri servizi;999;Altri servizi diversi n.a.c.;14/12/2016
516;1;0;1.476,20;1.476,20;CLIMED SRL; ;SALDO Fatt.n. 8 E  del 05/12/2016 MANUTENZIONE CALDAIE;14/12/2016;390;1;0;1;Spese correnti;3;Acquisto di beni e servizi;2;Acquisto di servizi;9;Manutenzione ordinaria e riparazioni;6;Manutenzione ordinaria e riparazioni di macchine per ufficio;14/12/2016
517;1;0;2.684,00;2.684,00;CLIMED SRL; ;SALDO Fatt.n. 7 E  del 05/12/2016 CALDAIA;14/12/2016;7836;2;0;2;Spese in conto capitale;5;Altre spese in conto capitale;99;Altre spese in conto capitale n.a.c.;99;Altre spese in conto capitale n.a.c.;999;Altre spese in conto capitale n.a.c.;14/12/2016
518;1;0;1,97;59,52;PAVIA ACQUE S.C.A.R.L.; ;SALDO Fatt.n. 1350020161500204100  del 24/11/2016 B/Bollettazione;14/12/2016;660;0;0;1;Spese correnti;3;Acquisto di beni e servizi;2;Acquisto di servizi;99;Altri servizi;999;Altri servizi diversi n.a.c.;14/12/2016
518;2;0;1,97;59,52;PAVIA ACQUE S.C.A.R.L.; ;SALDO Fatt.n. 1350020161500204000  del 24/11/2016 B/Bollettazione;14/12/2016;660;0;0;1;Spese correnti;3;Acquisto di beni e servizi;2;Acquisto di servizi;99;Altri servizi;999;Altri servizi diversi n.a.c.;14/12/2016
518;3;0;3,76;59,52;PAVIA ACQUE S.C.A.R.L.; ;SALDO Fatt.n. 1350020161500203800  del 24/11/2016 B/Bollettazione;14/12/2016;660;0;0;1;Spese correnti;3;Acquisto di beni e servizi;2;Acquisto di servizi;99;Altri servizi;999;Altri servizi diversi n.a.c.;14/12/2016
518;4;0;7,96;59,52;PAVIA ACQUE S.C.A.R.L.; ;SALDO Fatt.n. 1350020161500203500  del 24/11/2016 B/Bollettazione;14/12/2016;660;0;0;1;Spese correnti;3;Acquisto di beni e servizi;2;Acquisto di servizi;99;Altri servizi;999;Altri servizi diversi n.a.c.;14/12/2016
518;5;0;10,77;59,52;PAVIA ACQUE S.C.A.R.L.; ;SALDO Fatt.n. 1350020161500203300  del 24/11/2016 B/Bollettazione;14/12/2016;660;0;0;1;Spese correnti;3;Acquisto di beni e servizi;2;Acquisto di servizi;99;Altri servizi;999;Altri servizi diversi n.a.c.;14/12/2016
518;6;0;33,09;59,52;PAVIA ACQUE S.C.A.R.L.; ;SALDO Fatt.n. 1350020161500203700  del 24/11/2016 B/Bollettazione;14/12/2016;660;0;0;1;Spese correnti;3;Acquisto di beni e servizi;2;Acquisto di servizi;99;Altri servizi;999;Altri servizi diversi n.a.c.;14/12/2016
519;1;0;1,97;28,3;PAVIA ACQUE S.C.A.R.L.; ;SALDO Fatt.n. 1350020161500204200  del 24/11/2016 B/Bollettazione;14/12/2016;2840;0;0;1;Spese correnti;3;Acquisto di beni e servizi;2;Acquisto di servizi;5;Utenze e canoni;5;Acqua;14/12/2016
519;2;0;9,87;28,3;PAVIA ACQUE S.C.A.R.L.; ;SALDO Fatt.n. 1350020161500203400  del 24/11/2016 B/Bollettazione;14/12/2016;2840;0;0;1;Spese correnti;3;Acquisto di beni e servizi;2;Acquisto di servizi;5;Utenze e canoni;5;Acqua;14/12/2016
519;3;0;16,46;28,3;PAVIA ACQUE S.C.A.R.L.; ;SALDO Fatt.n. 1350020161500204300  del 24/11/2016 B/Bollettazione;14/12/2016;2840;0;0;1;Spese correnti;3;Acquisto di beni e servizi;2;Acquisto di servizi;5;Utenze e canoni;5;Acqua;14/12/2016
520;1;0;10,95;10,95;PAVIA ACQUE S.C.A.R.L.; ;SALDO Fatt.n. 1350020161500203200  del 24/11/2016 B/Bollettazione;14/12/2016;3471;0;0;1;Spese correnti;3;Acquisto di beni e servizi;2;Acquisto di servizi;5;Utenze e canoni;5;Acqua;14/12/2016
521;1;0;3;862;LIBARNA GAS SPA; ;SALDO Fatt.n. 100633  del 28/11/2016 METANO;14/12/2016;660;0;0;1;Spese correnti;3;Acquisto di beni e servizi;2;Acquisto di servizi;99;Altri servizi;999;Altri servizi diversi n.a.c.;14/12/2016
521;2;0;10;862;LIBARNA GAS SPA; ;SALDO Fatt.n. 100631  del 25/11/2016 METANO;14/12/2016;660;0;0;1;Spese correnti;3;Acquisto di beni e servizi;2;Acquisto di servizi;99;Altri servizi;999;Altri servizi diversi n.a.c.;14/12/2016
521;3;0;11;862;LIBARNA GAS SPA; ;SALDO Fatt.n. 100634  del 28/11/2016 METANI;14/12/2016;660;0;0;1;Spese correnti;3;Acquisto di beni e servizi;2;Acquisto di servizi;99;Altri servizi;999;Altri servizi diversi n.a.c.;14/12/2016
521;4;0;88;862;LIBARNA GAS SPA; ;SALDO Fatt.n. 100635  del 28/11/2016 METANO;14/12/2016;660;0;0;1;Spese correnti;3;Acquisto di beni e servizi;2;Acquisto di servizi;99;Altri servizi;999;Altri servizi diversi n.a.c.;14/12/2016
521;5;0;208;862;LIBARNA GAS SPA; ;SALDO Fatt.n. 100636  del 28/11/2016 METANO;14/12/2016;660;0;0;1;Spese correnti;3;Acquisto di beni e servizi;2;Acquisto di servizi;99;Altri servizi;999;Altri servizi diversi n.a.c.;14/12/2016
521;6;0;271;862;LIBARNA GAS SPA; ;SALDO Fatt.n. 100632  del 25/11/2016 METANO;14/12/2016;660;0;0;1;Spese correnti;3;Acquisto di beni e servizi;2;Acquisto di servizi;99;Altri servizi;999;Altri servizi diversi n.a.c.;14/12/2016
521;7;0;271;862;LIBARNA GAS SPA; ;SALDO Fatt.n. 100637  del 28/11/2016 METANO;14/12/2016;660;0;0;1;Spese correnti;3;Acquisto di beni e servizi;2;Acquisto di servizi;99;Altri servizi;999;Altri servizi diversi n.a.c.;14/12/2016
540;1;0;2.961,20;2.961,20;ERARIO; ;VERSAMENTO ACCONTO IVA SCAD. 30.12.2016;28/12/2016;686;0;0;1;Spese correnti;10;Altre spese correnti;3;Versamenti IVA a debito;1;Versamenti IVA a debito per le gestioni commerciali;1;Versamenti IVA a debito per le gestioni commerciali;28/12/2016
546;1;0;41,36;41,36;ENEL SERVIZIO ELETTRICO SPA; ;SALDO Fatt.n. 188550270101213  del 09/12/2016 VIA FALCONE - PROVV.N. 123 DEL 29.12.2016;30/12/2016;660;0;0;1;Spese correnti;3;Acquisto di beni e servizi;2;Acquisto di servizi;99;Altri servizi;999;Altri servizi diversi n.a.c.;30/12/2016
548;1;0;38,5;77,1;INTESA SAN PAOLO SPA; ;SPESE BANCARIE E BOLLI ANNI 2015 E 2016 - PROVV.N. 129 E 131 DEL 30.12.2016;31/12/2016;135;0;26;1;Spese correnti;3;Acquisto di beni e servizi;2;Acquisto di servizi;99;Altri servizi;999;Altri servizi diversi n.a.c.;31/12/2016
548;2;0;38,6;77,1;INTESA SAN PAOLO SPA; ;SPESE BANCARIE E BOLLI ANNI 2015 E 2016 - PROVV.N. 1 E 2;31/12/2016;135;0;26;1;Spese correnti;3;Acquisto di beni e servizi;2;Acquisto di servizi;99;Altri servizi;999;Altri servizi diversi n.a.c.;31/12/2016
